Inv Transaction,Supplier Name,Service Name,Department,Account Description,Redacted/Business Supplier,Paid Date, Amount Paid ,Non Recoverable VAT (Where Applicable),Merchant Category
5185999,11KBW LIMITED,Development Growth & Investment,Director of Place,Legal Fees,,05/01/2015,"1,970.00",,Legal Services
5185210,ABLE CARE AND SUPPORT SERVICES LTD,Adult Social Care,Director of People,Homecare Fees,,05/01/2015,"1,990.91",,Social Community Care Supplies & Services
5185953,ALTERNATIVE FUTURES GROUP,Adult Social Care,Director of People,Homecare Fees,,05/01/2015,"3,999.24",,Social Community Care Supplies & Services
5184893,B A HODCROFT,Environmental Services,Director of Place,Plaques,Business Payment,05/01/2015,680.6,,Cemetery & Crematorium
5185404,BERTRAM LIBRARY SERVICES,Education,Director of People,Text Books Periodicals and Newspapers,,05/01/2015,711.09,,Education
5185830,CARE UK HOMECARE,Adult Social Care,Director of People,Homecare Fees,,05/01/2015,"29,333.22",,Social Community Care Supplies & Services
5184527,CLICKS TO APPS LTD,Development Growth & Investment,Director of Place,"Marketing, Publicity and Recruitment",,05/01/2015,"1,200.00",,Unclassifiable
5184211,COMMUNITY LED INITIATIVES CIC,Public Health,Director of Public Health,Professional Services,,05/01/2015,"12,500.00",,Social & Community
5185479,CURZON ASHTON FOOTBALL CLUB,Childrens Services,Director of People,Professional Services,,05/01/2015,500,,Leisure Services
5186046,CW CONSULTING (UK) LTD,Adult Social Care,Director of People,Professional Consultancy Services ,,05/01/2015,"18,163.50",,Unclassifiable
5186096,DIRECT CARE (NORTH WEST) LTD,Adult Social Care,Director of People,Homecare Fees,,05/01/2015,"5,018.71",,Social Community Care Supplies & Services
5186097,DIRECT CARE (NORTH WEST) LTD,Adult Social Care,Director of People,Homecare Fees,,05/01/2015,"4,712.69",,Social Community Care Supplies & Services
5184242,DOMAIN CARE NORTH WEST LTD,Adult Social Care,Director of People,Homecare Fees,,05/01/2015,799.5,,Social Community Care
5184537,ELECTRICITY NORTH WEST LTD,Asset and Investment Partnership Management,Director of Place,Engineers -External,,05/01/2015,"23,695.53",,Utilities
5186045,,Adult Social Care,Director of People,Contribution to Maintenance Fee Income,Redacted Supplier,05/01/2015,"1,620.54",,Redacted
5185976,FAB EVENTS LIMITED,Governance,Director of Governance,Printing And Stationery,,05/01/2015,"1,245.00",,Facilities & Management Services
5185992,FIRST COAT DECORATORS,Adult Social Care,Director of People,Fixtures & Fittings Purchase,,05/01/2015,520,,"Works - Construction, Repair & Maintenance"
5184328,FREEDOM PROGRAMME LTD,Governance,Director of Governance,Training Course Costs,,05/01/2015,970,,Human Resources
5185963,GREENSCAPE,Adult Social Care,Director of People,Tree Planting Programme,,05/01/2015,663.69,,"Works - Construction, Repair & Maintenance"
5185967,GREENSCAPE,Environmental Services,Director of Place,Agency Staff,,05/01/2015,549.49,,"Works - Construction, Repair & Maintenance"
5185969,GREENSCAPE,Environmental Services,Director of Place,Agency Staff,,05/01/2015,752.16,,"Works - Construction, Repair & Maintenance"
5184372,HECTARE 8 CONTRACTS LTD,Environmental Services,Director of Place,Professional Weedspraying Services,,05/01/2015,"18,000.00",,"Works - Construction, Repair & Maintenance"
5184384,HECTARE 8 CONTRACTS LTD,Environmental Services,Director of Place,Professional Weedspraying Services,,05/01/2015,"18,000.00",,"Works - Construction, Repair & Maintenance"
5185827,HECTARE 8 CONTRACTS LTD,Environmental Services,Director of Place,Professional Weedspraying Services,,05/01/2015,"4,180.00",,"Works - Construction, Repair & Maintenance"
5186143,HOWARD COOK,Education,Director of People,Professional Services,Business Payment,05/01/2015,680,,Unclassifiable
5185454,INTRAQUEST COMMUNITY CIC,Childrens Services,Director of People,Professional Child Services,,05/01/2015,500,,Medical
5185455,INTRAQUEST COMMUNITY CIC,Childrens Services,Director of People,Professional Child Services,,05/01/2015,980,,Medical
5185447,JACKSON & TAYLOR LTD,Development Growth & Investment,Director of Place,Improvement Grants - Final Mandatory,,05/01/2015,"4,245.00",,"Works - Construction, Repair & Maintenance"
5185120,KNIGHT FRANK LLP,Asset and Investment Partnership Management,Director of Place,Building Maintenance,,05/01/2015,"1,345.00",,Unclassifiable
5184347,LOUISE LIGHTFOOT,Education,Director of People,Professional Services,Business Payment,05/01/2015,"2,800.00",,Medical
5184876,MISTRY MARKETING & EVENTS,Development Growth & Investment,Director of Place,"Marketing, Publicity and Recruitment",,05/01/2015,"2,500.00",,Leisure Services
5185994,MR KELVIN RUTLEDGE QC,Childrens Services,Director of People,Legal Fees,Business Payment,05/01/2015,500,,Unclassifiable
5184624,MRL HEALTHCARE LIMITED,Adult Social Care,Director of People,Homecare Fees,,05/01/2015,"30,000.00",,Social Community Care Supplies & Services
5185607,NEW BRIDGE HORIZONS,Adult Social Care,Director of People,Homecare Fees,,05/01/2015,"1,984.75",,Social Community Care Supplies & Services
5185971,NEW BRIDGE HORIZONS,Adult Social Care,Director of People,Homecare Fees,,05/01/2015,"2,101.50",,Social Community Care Supplies & Services
5186022,NEW BRIDGE HORIZONS,Adult Social Care,Director of People,Homecare Fees,,05/01/2015,"2,317.50",,Social Community Care Supplies & Services
5185942,NEW CHARTER HOUSING TRUST GROUP,Childrens Services,Director of People,Planning Fees,,05/01/2015,"3,458.83",,Social Community Care Supplies & Services
5185942,NEW CHARTER HOUSING TRUST GROUP,Stronger Communities,Director of People,Supporting People Gross Contract,,05/01/2015,"25,599.75",,Social Community Care Supplies & Services
5185942,NEW CHARTER HOUSING TRUST GROUP,Public Health,Director of Public Health,Supporting People Gross Contract,,05/01/2015,"13,176.25",,Social Community Care Supplies & Services
5185048,NPOWER LIMITED,Environmental Services,Director of Place,Electricity,,05/01/2015,"218,879.91",,Utilities
5185780,NPOWER LIMITED,Environmental Services,Director of Place,Electricity,,05/01/2015,"2,838.19",,Utilities
5186076,PAYPOINT COLLECTIONS LTD,Stronger Communities,Director of People,Emergency Grant Payments,,05/01/2015,693,,Unclassifiable
5185498,PENNINE CARE NHS FOUNDATION TRUST,Adult Social Care,Director of People,Professional Services,,05/01/2015,"7,296.00",,Medical
5185437,PERSON CENTRED CARE SERVICES LIMITED,Adult Social Care,Director of People,Homecare Fees,,05/01/2015,"1,767.10",,Medical
5185485,PERSON CENTRED CARE SERVICES LIMITED,Adult Social Care,Director of People,Homecare Fees,,05/01/2015,"1,731.96",,Medical
5185495,PERSON CENTRED CARE SERVICES LIMITED,Adult Social Care,Director of People,Homecare Fees,,05/01/2015,"1,768.32",,Medical
5185500,PERSON CENTRED CARE SERVICES LIMITED,Adult Social Care,Director of People,Professional Services,,05/01/2015,"1,634.28",,Medical
5185884,R-COM CONSULTING LTD,Exchequer,Director of Finance,Subscriptions,,05/01/2015,"1,304.36",,Public Bodies
5185400,RICOH UK,Multiple Heads of Service,Multiple Strategic Directorates,Photoprint charges,,05/01/2015,"8,586.48",,Facilities & Management Services
5185622,ROYAL MAIL GROUP LTD (PARCELFORCE WORLDWIDE),Exchequer,Director of Finance,Postages,,05/01/2015,"4,253.04",,Unclassifiable
5186015,SIMON PARKIN,Stronger Communities,Director of People,Artwork,Business Payment,05/01/2015,"4,389.75",,Unclassifiable
5185431,STAMFORD PROPERTIES,Adult Social Care,Director of People,Non-Authority Accommodation Rental,,05/01/2015,992.62,,Unclassifiable
5184721,STOCKPORT CP  SOCIETY,Adult Social Care,Director of People,Day Centre Fees,,05/01/2015,805.08,,Social Community Care Supplies & Services
5185851,STOCKPORT NHS FOUNDATION TRUST,Education,Director of People,Professional Services,,05/01/2015,"3,333.00",,Medical
5185962,STOCKPORT PSYCHOLOGY SERVICES LTD,Childrens Services,Director of People,Professional Services,,05/01/2015,860.94,,Medical
5186103,TAMESIDE ARTS LTD,Adult Social Care,Director of People,Professional Services,,05/01/2015,"1,224.00",,Leisure Services
5185578,TARVER MANAGEMENT SERVICES LTD,Childrens Services,Director of People,Professional Services,,05/01/2015,"2,500.00",,Unclassifiable
5167318,THE FURNISHING SERVICE LTD,Finance,Director of Finance,Fixtures & Fittings Purchase,,05/01/2015,199.99,,Furniture
5167318,THE FURNISHING SERVICE LTD,Stronger Communities,Director of People,Fixtures & Fittings Purchase,,05/01/2015,981.66,,Furniture
5174557,THE FURNISHING SERVICE LTD,Stronger Communities,Director of People,Fixtures & Fittings Purchase,,05/01/2015,550.69,,Furniture
5184223,THE FURNISHING SERVICE LTD,Stronger Communities,Director of People,Fixtures & Fittings Purchase,,05/01/2015,"1,213.10",,Furniture
5185555,THE TOGETHER TRUST,Adult Social Care,Director of People,Homecare Fees,,05/01/2015,"1,968.00",,Social Community Care
5185569,THE UNIVERSITY OF MANCHESTER,Adult Social Care,Director of People,Training Course Costs,,05/01/2015,"1,995.00",,Education
5184606,THYSSENKRUPP ENCASA LTD,Development Growth & Investment,Director of Place,Improvement Grants - Final Mandatory,,05/01/2015,"4,579.00",,Social Community Care
5185843,THYSSENKRUPP ENCASA LTD,Development Growth & Investment,Director of Place,Improvement Grants - Final Mandatory,,05/01/2015,"2,320.00",,Social Community Care
5180992,TMP UK LTD,Education,Director of People,Statutory Advertising,,05/01/2015,697,,Human Resources
5185139,TREASURED MEMORIES LTD,Environmental Services,Director of Place,Plaques,,05/01/2015,516,,Cemetery & Crematorium
5185784,UNITED UTILITIES WATER PLC,Asset and Investment Partnership Management,Director of Place,Metered Water Costs,,05/01/2015,"1,127.01",,Utilities
5185784,UNITED UTILITIES WATER PLC,Environmental Services,Director of Place,Metered Water Costs,,05/01/2015,803.77,,Utilities
5185871,VODAFONE,Finance,Director of Finance,Telephone Landline Costs,,05/01/2015,813.28,,Information Communication Technology
5184412,WHITEFERN LTD,Stronger Communities,Director of People,Fixtures & Fittings Purchase,,05/01/2015,"3,262.17",,Furniture
5177115, ,Environmental Services,Director of Place,Acquisition - Buildings,Redacted Supplier,07/01/2015,"47,615.73",,Redacted
5185160,ADVOCACY EXPERIENCE LTD,Adult Social Care,Director of People,Professional Services,,07/01/2015,"7,518.62",,Social Community Care Supplies & Services
5185781,ALTERNATIVE FUTURES GROUP,Adult Social Care,Director of People,Homecare Fees,,07/01/2015,"117,511.26",,Social Community Care Supplies & Services
5185838,ALTERNATIVE FUTURES GROUP,Adult Social Care,Director of People,Homecare Fees,,07/01/2015,"26,687.36",,Social Community Care Supplies & Services
5186086,BARRACUDA NETWORKS LTD,Digital Tameside,Director of Place,Repairs & Maintenance Of General Office Equipment,,07/01/2015,"10,885.00",,Information Communication Technology
5185832,CARE UK HOMECARE,Adult Social Care,Director of People,Homecare Fees,,07/01/2015,"30,162.12",,Social Community Care Supplies & Services
5184850,COMFORT CALL LIMITED,Adult Social Care,Director of People,Homecare Fees,,07/01/2015,"29,495.89",,Medical
5181745,CYCLESCHEME LTD,Multiple Heads of Service,Multiple Strategic Directorates,General Equipment Purchase,,07/01/2015,584.98,,Unclassifiable
5183176,EGBERT H TAYLOR & CO,Environmental Services,Director of Place,Refuse Domestic Bin Purchases,,07/01/2015,"15,162.00",,Environmental Services
5183832,EGBERT H TAYLOR & CO,Environmental Services,Director of Place,Refuse Domestic Bin Purchases,,07/01/2015,"4,859.40",,Environmental Services
5186131,EVERGLADES NURSERIES LTD,Environmental Services,Director of Place,General Materials,,07/01/2015,512.5,,Horticultural
5186167,EVERGLADES NURSERIES LTD,Environmental Services,Director of Place,Landscaping Works,,07/01/2015,601.4,,Horticultural
5186117,FORBES SOLICITORS,Multiple Heads of Service,Multiple Strategic Directorates,Legal Fees,,07/01/2015,628.5,,Legal Services
5185565,GRANT THORNTON UK LLP,Corporate Costs,Corporate Costs,Audit Commission Fees,,07/01/2015,"34,638.25",,Financial Services
5179549,GREATER MANCHESTER POLICE,Adult Social Care,Director of People,Professional Services,,07/01/2015,"4,072.00",,Non 3rd Party spend  
5185966,GREENSCAPE,Environmental Services,Director of Place,General Materials,,07/01/2015,690,,"Works - Construction, Repair & Maintenance"
5184846,GREENSCAPE,Environmental Services,Director of Place,Engineers Works,,07/01/2015,750,,"Works - Construction, Repair & Maintenance"
5185055,HOIST & SHOWER CHAIR CO,Development Growth & Investment,Director of Place,Improvement Grants - Final Mandatory,,07/01/2015,"1,025.00",,Social Community Care Supplies & Services
5174735,HUBER CAR PARK SYSTEMS INTERNATIONAL GMBH,Development Growth & Investment,Director of Place,Engineers -External,,07/01/2015,"331,325.33",,"Works - Construction, Repair & Maintenance"
5179915,HUBER CAR PARK SYSTEMS INTERNATIONAL GMBH,Development Growth & Investment,Director of Place,Engineers -External,,07/01/2015,"657,463.76",,"Works - Construction, Repair & Maintenance"
5183797,HUBER CAR PARK SYSTEMS INTERNATIONAL GMBH,Development Growth & Investment,Director of Place,Engineers -External,,07/01/2015,"448,649.82",,"Works - Construction, Repair & Maintenance"
5184448,HUBER CAR PARK SYSTEMS INTERNATIONAL GMBH,Development Growth & Investment,Director of Place,Engineers -External,,07/01/2015,"412,855.06",,"Works - Construction, Repair & Maintenance"
5178485,INSPIREDSPACES TAMESIDE LTD,Asset and Investment Partnership Management,Director of Place,Refreshments,,07/01/2015,"93,536.41",,Consultancy
5185546,INSPIREDSPACES TAMESIDE LTD,Asset and Investment Partnership Management,Director of Place,Cleaning Materials,,07/01/2015,"36,245.44",,Consultancy
5185546,INSPIREDSPACES TAMESIDE LTD,Asset and Investment Partnership Management,Director of Place,Professional Services,,07/01/2015,"102,349.63",,Consultancy
5185546,INSPIREDSPACES TAMESIDE LTD,Asset and Investment Partnership Management,Director of Place,Refreshments,,07/01/2015,"42,678.15",,Consultancy
5185546,INSPIREDSPACES TAMESIDE LTD,Asset and Investment Partnership Management,Director of Place,Uniforms/Clothing,,07/01/2015,"32,806.65",,Consultancy
5178485,INSPIREDSPACES TAMESIDE LTD,Asset and Investment Partnership Management,Director of Place,Refurbish Accommodation Works,,07/01/2015,"595,427.71",,Consultancy
5178485,INSPIREDSPACES TAMESIDE LTD,Asset and Investment Partnership Management,Director of Place,Telecom,,07/01/2015,396,,Consultancy
5185544,INSPIREDSPACES TAMESIDE LTD,Asset and Investment Partnership Management,Director of Place,Other Works,,07/01/2015,"444,819.69",,Consultancy
5185544,INSPIREDSPACES TAMESIDE LTD,Asset and Investment Partnership Management,Director of Place,Refurbishment Construction Costs,,07/01/2015,"507,175.15",,Consultancy
5185546,INSPIREDSPACES TAMESIDE LTD,Asset and Investment Partnership Management,Director of Place,Refurbishment Construction Costs,,07/01/2015,"129,483.46",,Consultancy
5185545,INSPIREDSPACES TAMESIDE LTD,Asset and Investment Partnership Management,Director of Place,Enabling Works,,07/01/2015,"1,371,910.45",,Consultancy
5178485,INSPIREDSPACES TAMESIDE LTD,Environmental Services,Director of Place,Adaptations - Small Jobs,,07/01/2015,"1,425.00",,Consultancy
5186414,JACKSON & TAYLOR LTD,Development Growth & Investment,Director of Place,Improvement Grants - Final Mandatory,,07/01/2015,"4,635.00",,"Works - Construction, Repair & Maintenance"
5182305,LGF,Public Health,Director of Public Health,Professional Services,,07/01/2015,"5,000.00",,Consultancy
5184402,LIFELINE PROJECT LTD (PH),Strategy & Early Intervention,Director of People,Professional Services,,07/01/2015,"50,750.00",,Consultancy
5184401,LIFELINE PROJECT LTD (PH),Public Health,Director of Public Health,Professional Services,,07/01/2015,"8,364.00",,Consultancy
5184403,LIFELINE PROJECT LTD (PH),Public Health,Director of Public Health,Professional Services,,07/01/2015,"24,989.00",,Consultancy
5184404,LIFELINE PROJECT LTD (PH),Public Health,Director of Public Health,Professional Services,,07/01/2015,"8,364.00",,Consultancy
5184313,LUCY FAITHFULL FOUNDATION,Childrens Services,Director of People,Professional Services,,07/01/2015,"3,131.10",,Unclassifiable
5186100,M NELSON & SON,Environmental Services,Director of Place,Engineers Works,,07/01/2015,"1,810.00",,"Works - Construction, Repair & Maintenance"
5186238,MRS JANET HAND,Education,Director of People,Professional Consultancy Services,Business Payment,07/01/2015,600,,Consultancy
5183311,NHS GREATER MANCHESTER CSU,Public Health,Director of Public Health,Professional Services,,07/01/2015,"5,774.00",,Public Bodies
5186157,NORTH WEST CONSTRUCTION,Development Growth & Investment,Director of Place,Improvement Grants - Final Mandatory,,07/01/2015,"12,774.00",,"Works - Construction, Repair & Maintenance"
5184963,PG FABRICATIONS,Environmental Services,Director of Place,General Materials,,07/01/2015,963,,"Works - Construction, Repair & Maintenance"
5185636,PRIME LIFE LTD,Adult Social Care,Director of People,Residential Home Short Stay Fees,,07/01/2015,"3,238.35",,Social Community Care Supplies & Services
5184705,PULSE,Adult Social Care,Director of People,Homecare Fees,,07/01/2015,"2,440.32",,Social Community Care Supplies & Services
5185137,RANDSTAD EDUCATION LIMITED,Education,Director of People,Agency Staff,,07/01/2015,796,,Education
5185289,RANDSTAD EDUCATION LIMITED,Education,Director of People,Agency Staff,,07/01/2015,690,,Education
5185311,RANDSTAD EDUCATION LIMITED,Education,Director of People,Agency Staff,,07/01/2015,650,,Education
5185318,RANDSTAD EDUCATION LIMITED,Education,Director of People,Agency Staff,,07/01/2015,"1,050.00",,Education
5185319,RANDSTAD EDUCATION LIMITED,Education,Director of People,Agency Staff,,07/01/2015,"1,050.00",,Education
5185320,RANDSTAD EDUCATION LIMITED,Education,Director of People,Agency Staff,,07/01/2015,"1,050.00",,Education
5185725,RANDSTAD EDUCATION LIMITED,Education,Director of People,Agency Staff,,07/01/2015,575,,Education
5185975,RANDSTAD EDUCATION LIMITED,Education,Director of People,Agency Staff,,07/01/2015,575,,Education
5186003,RANDSTAD EDUCATION LIMITED,Education,Director of People,Agency Staff,,07/01/2015,"1,050.00",,Education
5186063,RANDSTAD EDUCATION LIMITED,Education,Director of People,Agency Staff,,07/01/2015,"1,050.00",,Education
5186064,RANDSTAD EDUCATION LIMITED,Education,Director of People,Agency Staff,,07/01/2015,650,,Education
5186145,RANDSTAD EDUCATION LIMITED,Education,Director of People,Agency Staff,,07/01/2015,840,,Education
5185835,R-COM CONSULTING LTD,Digital Tameside,Director of Place,Computer Hardware Maintenance Costs,,07/01/2015,750,,Public Bodies
5186033,R-COM CONSULTING LTD,Digital Tameside,Director of Place,Repairs & Maintenance Of General Office Equipment,,07/01/2015,"26,031.04",,Public Bodies
5185153,REGENDA LIMITED,Adult Social Care,Director of People,Non-Authority Accommodation Rental,,07/01/2015,"16,796.49",,Housing Management
5186321,RICHARD DAWSON,Stronger Communities,Director of People,Professional Entertainment Services,Business Payment,07/01/2015,"1,645.00",,Unclassifiable
5185740,ROSS AUTO ENGINEERING LIMITED,Adult Social Care,Director of People,Joint Loans Store Fee,,07/01/2015,"123,965.94",,Social Community Care
5183656,ROYAL MAIL GROUP PLC,Governance,Director of Governance,Postages,,07/01/2015,902.86,,Mail Services
5185149,STREETDANCE AND FITNESS,Education,Director of People,Professional Services,,07/01/2015,630,,Leisure Services
5185587,TAMESIDE COLLEGE,Education,Director of People,Professional Services,,07/01/2015,"3,693.00",,Education
5185668,TAMESIDE SPORTS TRUST,Stronger Communities,Director of People,Refurbishment Construction Costs,,07/01/2015,"21,704.83",,Leisure Services
5185928,TEACHING PERSONNEL LTD,Education,Director of People,Agency Staff,,07/01/2015,648.9,,Human Resources
5186351,THE GUINNESS PARTNERSHIP LTD,Adult Social Care,Director of People,Non-Authority Accommodation Rental,,07/01/2015,"1,172.45",,Housing Management
5186352,THE GUINNESS PARTNERSHIP LTD,Adult Social Care,Director of People,Non-Authority Accommodation Rental,,07/01/2015,"3,903.20",,Housing Management
5185602,TIPP,Education,Director of People,Professional Services,,07/01/2015,600,,Human Resources
5185202,VIGLEN LTD,Digital Tameside,Director of Place,It Equipment,,07/01/2015,"9,720.00",,Information Communication Technology
5186166,VINCENT OBRIEN (CONSTRUCTION),Development Growth & Investment,Director of Place,Improvement Grants - Final Mandatory,,07/01/2015,"2,318.00",,"Works - Construction, Repair & Maintenance"
5183421,VISION FOR EDUCATION LIMITED,Education,Director of People,Agency Staff,,07/01/2015,900,,Education
5184702,VISION FOR EDUCATION LIMITED,Education,Director of People,Agency Staff,,07/01/2015,575,,Education
5185122,VISION FOR EDUCATION LIMITED,Education,Director of People,Agency Staff,,07/01/2015,900,,Education
5185621,VISION FOR EDUCATION LIMITED,Education,Director of People,Agency Staff,,07/01/2015,900,,Education
5184443,AGGREGATE INDUSTRIES UK LIMITED,Multiple Heads of Service,Multiple Strategic Directorates,Road Marking Works,,08/01/2015,"25,937.74",,Highway Equipment & Materials�
5185135,ALLIANCE DISPOSABLES LTD,Adult Social Care,Director of People,Cleaning Materials,,08/01/2015,565.2,,Cleaning & Janitorial
3250490,ARNOLD PLANT HIRE LTD,Environmental Services,Director of Place,Additional Hire,,08/01/2015,"2,431.00",,Vehicles
3250490,ARNOLD PLANT HIRE LTD,Environmental Services,Director of Place,Workshop Recharges including Misuse & Damage Costs,,08/01/2015,93.7,,Vehicles
5186120,AZHAR ENTERPRISES,Stronger Communities,Director of People,Purchase Books,,08/01/2015,710,,Education
5186416,BIG LOCAL TRUST ( BIG ),Stronger Communities,Director of People,Contributions,,08/01/2015,"4,755.10",,Unclassifiable
5186421,CARE UK HOMECARE,Adult Social Care,Director of People,Homecare Fees,,08/01/2015,"29,681.53",,Social Community Care Supplies & Services
5186422,CARE UK HOMECARE,Adult Social Care,Director of People,Homecare Fees,,08/01/2015,"30,883.49",,Social Community Care Supplies & Services
5180914,COMMUNITY AND VOLUNTARY ACTION TAMESIDE,Public Health,Director of Public Health,"Activity (Materials, Trips)",,08/01/2015,"20,000.00",,Financial Services
5186071,COMPLETE BACKGROUND SCREENING LTD,Governance,Director of Governance,Professional Services,,08/01/2015,"2,734.50",,Unclassifiable
5186409,CORONA ENERGY RETAIL 4 LIMITED,Education,Director of People,Gas,,08/01/2015,"2,801.93",,Utilities
5185926,CREATIVE SUPPORT LTD,Adult Social Care,Director of People,Homecare Fees,,08/01/2015,"124,890.83",,Social Community Care Supplies & Services
5186516,DAVID CROZIER,Education,Director of People,Transport Of Post 16 Pupils,Business Payment,08/01/2015,"1,344.00",,Unclassifiable
5186517,DAVID CROZIER,Education,Director of People,Transport Of Pupils,Business Payment,08/01/2015,"1,140.00",,Unclassifiable
5186525,DAVID CROZIER,Education,Director of People,Transport Of Post 16 Pupils,Business Payment,08/01/2015,"1,344.00",,Unclassifiable
5186526,DAVID CROZIER,Education,Director of People,Transport Of Pupils,Business Payment,08/01/2015,"1,485.00",,Unclassifiable
3250490,DAWSON RENTALS SWEEPERS,Environmental Services,Director of Place,Additional Hire,,08/01/2015,"2,010.00",,Highway Equipment & Materials�
3250490,DAWSON RENTALS SWEEPERS,Environmental Services,Director of Place,Workshop Recharges including Misuse & Damage Costs,,08/01/2015,80,,Highway Equipment & Materials�
5185514,DCM SURFACES,Stronger Communities,Director of People,General Equipment Repair & Maintenance,,08/01/2015,"5,739.00",,"Works - Construction, Repair & Maintenance"
3250490,DENNIS EAGLE LTD,Environmental Services,Director of Place,General Materials,,08/01/2015,991.74,,Vehicles
3250490,DENNIS EAGLE LTD,Environmental Services,Director of Place,Debits Goods Received,,08/01/2015,"1,370.49",,Vehicles
5186471,DENTON HURST METHODIST CHURCH,Corporate Costs,Corporate Costs,Contributions,,08/01/2015,500,,Charities and Voluntary Organisations
3250490,F & G COMMERCIALS (OLDHAM) LIMITED,Environmental Services,Director of Place,General Materials,,08/01/2015,"3,855.19",,Vehicles
3250490,FREIGHT TRANSPORT ASSOCIATION,Environmental Services,Director of Place,General Materials,,08/01/2015,37.85,,Vehicles
3250490,FREIGHT TRANSPORT ASSOCIATION,Environmental Services,Director of Place,Subscriptions,,08/01/2015,935,,Vehicles
3250490,G B OILS TA CARLTON FUELS,Environmental Services,Director of Place,Diesel Fuel,,08/01/2015,"20,223.00",,Utilities
5186555,G4S CASH SOLUTIONS (UK) LIMITED,Governance,Director of Governance,Security Services,,08/01/2015,55.97,,Facilities & Management Services
5186555,G4S CASH SOLUTIONS (UK) LIMITED,Stronger Communities,Director of People,Security Services,,08/01/2015,447.73,,Facilities & Management Services
5186555,G4S CASH SOLUTIONS (UK) LIMITED,Environmental Services,Director of Place,Security Services,,08/01/2015,55.97,,Facilities & Management Services
3250490,GEESINK NORBA LTD,Environmental Services,Director of Place,General Materials,,08/01/2015,"2,111.83",,Environmental Services
5185850,GL EDUCATION GROUP,Public Health,Director of Public Health,Text Books Periodicals and Newspapers,,08/01/2015,"3,730.90",,Education
5185937,GLASDON UK LTD,Environmental Services,Director of Place,General Materials,,08/01/2015,933.54,,Highway Equipment & Materials�
5186458,GREENSCAPE,Adult Social Care,Director of People,Tree Planting Programme,,08/01/2015,663.69,,"Works - Construction, Repair & Maintenance"
5185150,GREG EGAN,Education,Director of People,Additional Hire,Business Payment,08/01/2015,"3,000.00",,Transport
3250490,HI-Q TYRESERVICES,Environmental Services,Director of Place,Tyre Costs, ,08/01/2015,"1,607.91",,Vehicles
3250490,HI-WAY COMPONENTS,Environmental Services,Director of Place,General Equipment Purchase,,08/01/2015,390,,Vehicles
3250490,HI-WAY COMPONENTS,Environmental Services,Director of Place,General Materials,,08/01/2015,117.36,,Vehicles
3250490,HI-WAY COMPONENTS,Environmental Services,Director of Place,Debits Goods Received,,08/01/2015,105.82,,Vehicles
5185909,HOIST & SHOWER CHAIR CO,Development Growth & Investment,Director of Place,Improvement Grants - Final Mandatory,,08/01/2015,"1,506.00",,Social Community Care Supplies & Services
5185505,HOMESTART TAMESIDE & OLDHAM,Public Health,Director of Public Health,Professional Services,,08/01/2015,"16,666.67",,Social Community Care Supplies & Services
5186468,INSPIREDSPACES TAMESIDE LTD,Asset and Investment Partnership Management,Director of Place,Professional Services,,08/01/2015,"80,900.00",,Consultancy
5186468,INSPIREDSPACES TAMESIDE LTD,Asset and Investment Partnership Management,Director of Place,Refreshments,,08/01/2015,"92,507.12",,Consultancy
5186468,INSPIREDSPACES TAMESIDE LTD,Asset and Investment Partnership Management,Director of Place,Refurbishment Construction Costs,,08/01/2015,"23,636.89",,Consultancy
5186468,INSPIREDSPACES TAMESIDE LTD,Asset and Investment Partnership Management,Director of Place,Cabling/Diversion Works,,08/01/2015,"6,213.00",,Consultancy
5186468,INSPIREDSPACES TAMESIDE LTD,Asset and Investment Partnership Management,Director of Place,Miscellaneous Fees,,08/01/2015,"10,133.00",,Consultancy
5186481,J & R TAXIS LTD,Environmental Services,Director of Place,Hired Transport,,08/01/2015,"1,944.00",,Transport
5186239,JOHN D PEATFIELD T/A SAUNTERING,Education,Director of People,Professional Consultancy Services,,08/01/2015,"2,500.00",,Unclassifiable
3250490,JOHNSTON SWEEPERS LTD,Environmental Services,Director of Place,General Materials,,08/01/2015,"2,077.74",,Environmental Services
3250490,JOHNSTON SWEEPERS LTD,Environmental Services,Director of Place,Debits Goods Received,,08/01/2015,471.71,,Environmental Services
5186545,KINGS CHAMBERS,Development Growth & Investment,Director of Place,Legal Fees,,08/01/2015,"1,856.25",,Public Bodies
5186527,LIME TRAVEL,Childrens Services,Director of People,Hired Transport,,08/01/2015,"1,200.00",,Human Resources
5186483,LIME TRAVEL,Education,Director of People,Transport Of Pupils,,08/01/2015,"1,365.00",,Human Resources
5186518,LIME TRAVEL,Education,Director of People,Transport Of Ola Pupils,,08/01/2015,"1,537.50",,Human Resources
5186521,LIME TRAVEL,Education,Director of People,Transport Of Pupils,,08/01/2015,"1,365.00",,Human Resources
5186522,LIME TRAVEL,Education,Director of People,Transport Of Pupils,,08/01/2015,"1,365.00",,Human Resources
5186523,LIME TRAVEL,Education,Director of People,Transport Of Ola Pupils,,08/01/2015,"1,297.50",,Human Resources
5185152,MACK 4 LIMITED,Development Growth & Investment,Director of Place,Improvement Grants - Final Mandatory,,08/01/2015,"3,590.00",,"Works - Construction, Repair & Maintenance"
5185449,MACK 4 LIMITED,Development Growth & Investment,Director of Place,Improvement Grants - Final Mandatory,,08/01/2015,"2,855.00",,"Works - Construction, Repair & Maintenance"
5185908,MACK 4 LIMITED,Development Growth & Investment,Director of Place,Improvement Grants - Final Mandatory,,08/01/2015,"3,410.00",,"Works - Construction, Repair & Maintenance"
5186418,MEDICO NURSING AND HOMECARE,Adult Social Care,Director of People,Homecare Fees,,08/01/2015,"11,915.22",,Social Community Care Supplies & Services
5186423,MEDICO NURSING AND HOMECARE,Adult Social Care,Director of People,Homecare Fees,,08/01/2015,"11,773.97",,Social Community Care Supplies & Services
5186492,MICHAEL ADLARD,Education,Director of People,Transport Of Pupils,Business Payment,08/01/2015,"1,200.00",,Transport
5186546,MISS LEILA GHAHHARY,Development Growth & Investment,Director of Place,Legal Fees,Business Payment,08/01/2015,665,,Unclassifiable
5186274,MRL HEALTHCARE LIMITED,Adult Social Care,Director of People,Homecare Fees,,08/01/2015,"30,000.00",,Social Community Care Supplies & Services
5185682,N A BROWN LTD,Environmental Services,Director of Place,General Materials,,08/01/2015,"1,344.50",,Unclassifiable
5186333,NEW CHARTER HOUSING TRUST,Stronger Communities,Director of People,Emergency Grant Payments,,08/01/2015,681,,Unclassifiable
5185195,NEW IMAGE(PUBLIC RELATIONS) LTD,Stronger Communities,Director of People,Professional Entertainment Services,,08/01/2015,"1,106.00",,Facilities & Management Services
5184114,NHS GREATER MANCHESTER CSU,Public Health,Director of Public Health,Professional Services,,08/01/2015,"3,026.72",,Public Bodies
5185888,NORTH WEST EMPLOYERS,Governance,Director of Governance,Training Course Costs,,08/01/2015,"1,150.00",,Human Resources
5186524,PARKLANE,Environmental Services,Director of Place,Hired Transport,,08/01/2015,"1,440.00",,Transport
5186532,PARKLANE,Environmental Services,Director of Place,Hired Transport,,08/01/2015,"1,188.00",,Transport
5181577,PARKRUN LTD,Public Health,Director of Public Health,Professional Services,,08/01/2015,"2,500.00",,Leisure
3250490,PEAK PARTS,Environmental Services,Director of Place,Consumable Materials,,08/01/2015,765.94,,Vehicles
3250490,PEAK PARTS,Environmental Services,Director of Place,General Materials,,08/01/2015,26.93,,Vehicles
5184639,PENNINE CARE NHS TRUST,Adult Social Care,Director of People,Professional Services,,08/01/2015,"3,705.63",,Social Community Care Supplies & Services
5145516,POLLOCK LIFTS LTD,Development Growth & Investment,Director of Place,Improvement Grants - Final Mandatory,,08/01/2015,"8,193.00",,Unclassifiable
5185834,POLLOCK LIFTS LTD,Development Growth & Investment,Director of Place,Improvement Grants - Final Mandatory,,08/01/2015,"8,155.00",,Unclassifiable
5186496,RADIO CABS (ASHTON)LTD,Childrens Services,Director of People,Hired Transport,,08/01/2015,"1,480.00",,Transport
5186478,RADIO CABS (ASHTON)LTD,Education,Director of People,Transport Of Pupils,,08/01/2015,"1,392.00",,Transport
5186485,RADIO CABS (ASHTON)LTD,Education,Director of People,Hired Transport,,08/01/2015,"1,880.00",,Transport
5186499,RADIO CABS (ASHTON)LTD,Education,Director of People,Transport Of Ola Pupils,,08/01/2015,547.2,,Transport
5186504,RADIO CABS (ASHTON)LTD,Education,Director of People,Transport Of Pupils,,08/01/2015,"1,880.00",,Transport
5186505,RADIO CABS (ASHTON)LTD,Education,Director of People,Transport Of Pupils,,08/01/2015,"1,880.00",,Transport
5186506,RADIO CABS (ASHTON)LTD,Education,Director of People,Transport Of Pupils,,08/01/2015,"2,242.50",,Transport
5186507,RADIO CABS (ASHTON)LTD,Education,Director of People,Transport Of Post 16 Pupils,,08/01/2015,812,,Transport
5186509,RADIO CABS (ASHTON)LTD,Education,Director of People,Transport Of Post 16 Pupils,,08/01/2015,"1,563.10",,Transport
5186510,RADIO CABS (ASHTON)LTD,Education,Director of People,Transport Of Post 16 Pupils,,08/01/2015,"1,417.10",,Transport
5186511,RADIO CABS (ASHTON)LTD,Education,Director of People,Transport Of Ola Pupils,,08/01/2015,"2,120.00",,Transport
5186512,RADIO CABS (ASHTON)LTD,Education,Director of People,Transport Of Pupils,,08/01/2015,"1,032.00",,Transport
5186513,RADIO CABS (ASHTON)LTD,Education,Director of People,Transport Of Ola Pupils,,08/01/2015,"1,846.80",,Transport
5186514,RADIO CABS (ASHTON)LTD,Education,Director of People,Hired Transport,,08/01/2015,"1,936.00",,Transport
5186515,RADIO CABS (ASHTON)LTD,Education,Director of People,Transport Of Pupils,,08/01/2015,"1,600.00",,Transport
5186484,RADIO CABS (ASHTON)LTD,Environmental Services,Director of Place,Hired Transport,,08/01/2015,745.8,,Transport
5186212,ROYAL MAIL GROUP PLC,Exchequer,Director of Finance,Postages,,08/01/2015,"1,077.01",,Mail Services
5186519,ROYALE MINICOACHES,Education,Director of People,Transport Of Pupils,,08/01/2015,"1,500.00",,Transport
5185656,STOCKPORT NHS FOUNDATION TRUST,Adult Social Care,Director of People,Agency Staff,,08/01/2015,"2,977.08",,Medical
5185658,THAMES CARD TECHNOLOGY LTD,Stronger Communities,Director of People,Printing And Stationery,,08/01/2015,"1,575.99",,Facilities & Management Services
5184556,THE FURNISHING SERVICE LTD,Stronger Communities,Director of People,Fixtures & Fittings Purchase,,08/01/2015,797.68,,Furniture
5184580,THE FURNISHING SERVICE LTD,Stronger Communities,Director of People,Fixtures & Fittings Purchase,,08/01/2015,613.33,,Furniture
5185193,THE FURNISHING SERVICE LTD,Stronger Communities,Director of People,Fixtures & Fittings Purchase,,08/01/2015,509.91,,Furniture
5185477,THE FURNISHING SERVICE LTD,Stronger Communities,Director of People,Fixtures & Fittings Purchase,,08/01/2015,658.68,,Furniture
5185518,THE FURNISHING SERVICE LTD,Stronger Communities,Director of People,Fixtures & Fittings Purchase,,08/01/2015,763.66,,Furniture
5185634,TYNETEC,Adult Social Care,Director of People,It Equipment,,08/01/2015,"1,476.40",,Social Community Care
5185671,TYNETEC,Adult Social Care,Director of People,It Equipment,,08/01/2015,"5,890.00",,Social Community Care
3250490,VISHAY PM ONBOARD LTD,Environmental Services,Director of Place,General Materials,,08/01/2015,910,,Unclassifiable
5186554,VODAFONE,Adult Social Care,Director of People,Telephone Landline Costs,,08/01/2015,21.2,,Information Communication Technology
5186554,VODAFONE,Stronger Communities,Director of People,Telephone Landline Costs,,08/01/2015,26.14,,Information Communication Technology
5186554,VODAFONE,Environmental Services,Director of Place,Telephone Landline Costs,,08/01/2015,33.66,,Information Communication Technology
5186554,VODAFONE,Multiple Heads of Service,Multiple Strategic Directorates,Telephone Landline Costs,,08/01/2015,970.75,,Information Communication Technology
5186529,W A MEADOWCROFT,Education,Director of People,Transport Of Pupils,Business Payment,08/01/2015,900,,Unclassifiable
5186534,W A MEADOWCROFT,Environmental Services,Director of Place,Hired Transport,Business Payment,08/01/2015,"1,200.00",,Unclassifiable
5185409,W F HOWES LTD,Stronger Communities,Director of People,Purchase Books,,08/01/2015,533.7,,Education
5185573,W F HOWES LTD,Stronger Communities,Director of People,Purchase Books,,08/01/2015,"1,197.00",,Education
5184236,WILDE CONSULTING ENGINEERS,Environmental Services,Director of Place,Engineers -External,,08/01/2015,"4,455.51",,Consultancy
5184257,WILDE CONSULTING ENGINEERS,Environmental Services,Director of Place,Engineers -External,,08/01/2015,"3,798.48",,Consultancy
5184236,WILDE CONSULTING ENGINEERS,Environmental Services,Director of Place,Engineers -External,,08/01/2015,"1,340.00",,Consultancy
5184257,WILDE CONSULTING ENGINEERS,Environmental Services,Director of Place,Engineers -External,,08/01/2015,510.96,,Consultancy
5185134,WILLIAMS WOODWARD LTD,Finance,Director of Finance,Professional Consultancy Services,,08/01/2015,"8,300.00",,CONSULTANCY
5186553,WORLDPAY,Exchequer,Director of Finance,PDQ Fees,,08/01/2015,"2,284.65",,Financial Services
5186553,WORLDPAY,Asset and Investment Partnership Management,Director of Place,PDQ Fees,,08/01/2015,403.14,,Financial Services
5186553,WORLDPAY,Environmental Services,Director of Place,PDQ Fees,,08/01/2015,188.13,,Financial Services
5186553,WORLDPAY,Environmental Services,Director of Place,PDQ Fees,,08/01/2015,295.64,,Financial Services
470599,ABACUS LIGHTING LTD,Environmental Services,Director of Place,General Materials,,12/01/2015,635.92,,Highway Equipment & Materials�
470599,ACE SAFETY ACADEMY,Environmental Services,Director of Place,Training Course Costs,,12/01/2015,630,,Unclassifiable
5186607,ACORN RECOVERY PROJECTS,Public Health,Director of Public Health,Professional Services,,12/01/2015,"1,838.57",,Facilities & Management Services
5186731,ADONI SOFTWARE,Digital Tameside,Director of Place,Computer Software,,12/01/2015,"1,750.00",,Information Communication Technology
5186093,AGE UK TAMESIDE,Adults Early Intervention,Director of People,Professional Services,,12/01/2015,"19,166.67",,Environmental Services
5186301,AGE UK TAMESIDE,Adults Early Intervention,Director of People,Professional Services,,12/01/2015,"6,930.00",,Environmental Services
5186307,AGE UK TAMESIDE,Adults Early Intervention,Director of People,Age Concern Fees,,12/01/2015,"4,660.00",,Environmental Services
5186312,AGE UK TAMESIDE,Adults Early Intervention,Director of People,Age Concern Fees,,12/01/2015,"3,501.67",,Environmental Services
5186767,AGE UK TAMESIDE,Adults Early Intervention,Director of People,Age Concern Fees,,12/01/2015,"3,501.67",,Environmental Services
470599,AGGREGATE INDUSTRIES UK LIMITED,Environmental Services,Director of Place,General Materials,,12/01/2015,"2,422.54",,Highway Equipment & Materials�
470599,AGGREGATE INDUSTRIES UK LIMITED,Environmental Services,Director of Place,Sub-contractor Services,,12/01/2015,"32,855.45",,Highway Equipment & Materials�
470599,ARCO LIMITED,Stronger Communities,Director of People,General Materials,,12/01/2015,22.8,,Clothing
470599,ARCO LIMITED,Development Growth & Investment,Director of Place,General Materials,,12/01/2015,49.99,,Clothing
470599,ARCO LIMITED,Environmental Services,Director of Place,General Materials,,12/01/2015,95.6,,Clothing
470599,ARCO LIMITED,Environmental Services,Director of Place,Debits Goods Received,,12/01/2015,"1,180.44",,Clothing
5186750,ARTS TAG LTD,Stronger Communities,Director of People,Professional Entertainment Services,,12/01/2015,"2,445.00",,Leisure Services
5181837,BOLTON NHS FOUNDATION TRUST,Public Health,Director of Public Health,Professional Services,,12/01/2015,593,,Unclassifiable
470599,BRAMHALL SURFACING LTD,Environmental Services,Director of Place,Sub-contractor Services,,12/01/2015,"3,214.32",,"Works - Construction, Repair & Maintenance"
5186643,CARDSAVE ONLINE LTD,Exchequer,Director of Finance,National Giro,,12/01/2015,"1,344.65",,Public Bodies
470599,CBS (NORTH WEST) LTD,Environmental Services,Director of Place,Sub-contractor Services,,12/01/2015,"1,751.82",,"Works - Construction, Repair & Maintenance"
5184700,CENTRAL MANCHESTER UNIVERSITY HOSPITAL NHS FT,Public Health,Director of Public Health,Professional Services,,12/01/2015,"4,205.00",,Human Resources
5185405,CENTRAL MANCHESTER UNIVERSITY HOSPITAL NHS FT,Public Health,Director of Public Health,Professional Services,,12/01/2015,"3,806.00",,Human Resources
5186419,COMFORT CALL LIMITED,Adult Social Care,Director of People,Homecare Fees,,12/01/2015,"29,898.42",,Medical
5185924,CREATIVE SUPPORT LTD,Adult Social Care,Director of People,Independent Sector Care Fees,,12/01/2015,"67,669.36",,Social Community Care Supplies & Services
5185925,CREATIVE SUPPORT LTD,Adult Social Care,Director of People,Homecare Fees,,12/01/2015,"84,992.92",,Social Community Care Supplies & Services
5185927,CREATIVE SUPPORT LTD,Adult Social Care,Director of People,Homecare Fees,,12/01/2015,"79,445.25",,Social Community Care Supplies & Services
5186452,CREATIVE SUPPORT LTD,Adult Social Care,Director of People,Residential Home Long Stay Fees,,12/01/2015,"1,661.52",,Social Community Care Supplies & Services
5185885,DOCUMENT MANAGEMENT INDUSTRIES ASSOCIATION,Asset and Investment Partnership Management,Director of Place,Computer Software,,12/01/2015,850,,Facilities & Management Services
5186721,DWP,Multiple Heads of Service,Multiple Strategic Directorates,Claims Settled,,12/01/2015,"1,370.36",,Non 3rd Party spend  
470599,EAGLE CIVIL ENGINEERING LTD,Environmental Services,Director of Place,Sub-contractor Services,,12/01/2015,"28,398.75",,Highway Equipment & Materials�
470599,ELLIOTT GROUP LTD,Environmental Services,Director of Place,Additional Hire,,12/01/2015,896.23,,"Works - Construction, Repair & Maintenance"
470599,ELLIOTT GROUP LTD,Environmental Services,Director of Place,General Materials,,12/01/2015,"1,119.74",,"Works - Construction, Repair & Maintenance"
5186311,FIVE LINES CONSULTING,Development Growth & Investment,Director of Place,Professional Services,,12/01/2015,"2,375.00",,Consultancy
5158588,GREATER MANCHESTER COMBINED AUTHORITY,Environmental Services,Director of Place,Passenger Transport Levy,,12/01/2015,"1,614,500.00",,Unclassifiable
5186673,GT LAW SOLICITORS,Multiple Heads of Service,Multiple Strategic Directorates,Legal Fees,,12/01/2015,"1,100.00",,Unclassifiable
470599,HARTTRON  LTD,Environmental Services,Director of Place,Sub-contractor Services,,12/01/2015,"4,800.00",,"Works - Construction, Repair & Maintenance"
5186671, ,Multiple Heads of Service,Multiple Strategic Directorates,Claims Settled,Redacted Supplier,12/01/2015,"10,000.00",,Redacted
5186398,,Adult Social Care,Director of People,Day Care Fees,Redacted Supplier,12/01/2015,516.74,,Redacted
5186396,,Adult Social Care,Director of People,Day Care Fees,Redacted Supplier,12/01/2015,657.38,,Redacted
5186384,,Development Growth & Investment,Director of Place,Improvement Grants - Final Mandatory,Redacted Supplier,12/01/2015,"2,254.40",,Redacted
470599,KEN TAYLOR SUPPLIES LTD,Stronger Communities,Director of People,General Materials,,12/01/2015,7.5,,Unclassifiable
470599,KEN TAYLOR SUPPLIES LTD,Environmental Services,Director of Place,General Materials,,12/01/2015,765.6,,Unclassifiable
470599,KEN TAYLOR SUPPLIES LTD,Environmental Services,Director of Place,Debits Goods Received,,12/01/2015,281.25,,Unclassifiable
5185960,LUBBE & SONS (BULBS) LTD,Environmental Services,Director of Place,General Materials,,12/01/2015,612,,Horticultural
470599,MALLATITE LTD,Environmental Services,Director of Place,Stores Purchases,,12/01/2015,200,,Highway Equipment & Materials�
470599,MALLATITE LTD,Environmental Services,Director of Place,Debits Goods Received,,12/01/2015,"10,469.60",,Highway Equipment & Materials�
5186376,MANCHESTER CITY COUNCIL,Environmental Services,Director of Place,Contributions,,12/01/2015,"4,000.00",,Financial Services
5186734,MANCHESTER DOGS HOME,Environmental Services,Director of Place,Professional Consultancy Services,,12/01/2015,944.79,,Environmental Services
5186735,MANCHESTER DOGS HOME,Environmental Services,Director of Place,Professional Consultancy Services,,12/01/2015,"1,259.72",,Environmental Services
470599,MANCHESTER SAFETY  SERVICES LTD,Environmental Services,Director of Place,General Materials,,12/01/2015,"5,392.50",,Clothing
470599,MARWOOD ELECTRICAL CO,Environmental Services,Director of Place,General Materials,,12/01/2015,"2,253.84",,Highway Equipment & Materials�
470599,MARWOOD ELECTRICAL CO,Environmental Services,Director of Place,Debits Goods Received,,12/01/2015,"1,058.76",,Highway Equipment & Materials�
5186736,MICHAEL ADLARD,Education,Director of People,Transport Of Pupils,Business Payment,12/01/2015,"1,200.00",,Transport
5186036,NORTH WEST EMPLOYERS,Public Health,Director of Public Health,Training Course Costs,,12/01/2015,"1,050.00",,Human Resources
5186709,OLDHAM COUNCIL,Environmental Services,Director of Place,Professional Consultancy Services,,12/01/2015,"1,252.50",,Unclassifiable
5186710,OLDHAM COUNCIL,Environmental Services,Director of Place,Professional Consultancy Services,,12/01/2015,"1,147.50",,Unclassifiable
5186711,OLDHAM COUNCIL,Environmental Services,Director of Place,Professional Consultancy Services,,12/01/2015,"1,065.00",,Unclassifiable
5186715,OLDHAM COUNCIL,Environmental Services,Director of Place,Professional Consultancy Services,,12/01/2015,"1,495.00",,Unclassifiable
5186717,OLDHAM COUNCIL,Environmental Services,Director of Place,Professional Consultancy Services,,12/01/2015,"1,074.50",,Unclassifiable
5186718,OLDHAM COUNCIL,Environmental Services,Director of Place,Professional Consultancy Services,,12/01/2015,972.5,,Unclassifiable
5186733,OLDHAM COUNCIL,Environmental Services,Director of Place,Professional Consultancy Services,,12/01/2015,"1,172.50",,Unclassifiable
5186528,OUR LIFE,Public Health,Director of Public Health,Professional Services,,12/01/2015,"1,000.00",,Consultancy
470599,P CASEY (ENVIRO) LTD,Environmental Services,Director of Place,Tipping Facility Fees,,12/01/2015,"8,440.68",,Public Bodies
470599,P F CUSACK LTD,Environmental Services,Director of Place,Debits Goods Received,,12/01/2015,"2,626.75",,Horticultural
5186769, ,Adult Social Care,Director of People,Day Care Fees,Redacted Supplier,12/01/2015,560.1,,Redacted
5186634,PATRICIA BUXTON,Childrens Services,Director of People,Professional Services,Business Payment,12/01/2015,730.53,,Medical
470599,PREMIER WASTE (UK) LTD,Environmental Services,Director of Place,Sub-contractor Services,,12/01/2015,"2,128.00",,Environmental Services
5185638,PROFILE SECURITY SERVICES LIMITED,Asset and Investment Partnership Management,Director of Place,Security Equipment,,12/01/2015,"10,071.35",,Facilities & Management Services
5186677, ,Multiple Heads of Service,Multiple Strategic Directorates,Claims Settled,Redacted Supplier,12/01/2015,"8,000.00",,Redacted
5181752,QUEST MEDIA NETWORKS LTD,Environmental Services,Director of Place,Statutory Advertising,,12/01/2015,525,,Unclassifiable
5186444,REDDIPAK LIMITED,Environmental Services,Director of Place,General Materials,,12/01/2015,890.8,,Unclassifiable
470599,SMITH BROS CAER CONAN WHOLESALE LTD,Environmental Services,Director of Place,Discounts Taken,,12/01/2015,-20.24,,Building Construction Materials
470599,SMITH BROS CAER CONAN WHOLESALE LTD,Environmental Services,Director of Place,Debits Goods Received,,12/01/2015,810.35,,Building Construction Materials
5186242,SPECIALIST COMPUTER CENTRES LIMITED,Finance,Director of Finance,Professional Consultancy Services,,12/01/2015,"23,469.07",,Information Communication Technology
5186326,ST JOHN AMBULANCE,Environmental Services,Director of Place,General Materials,,12/01/2015,744,,Medical
5186189,STOCKPORT PSYCHOLOGY SERVICES LTD,Childrens Services,Director of People,Professional Services,,12/01/2015,860.94,,Medical
5186747,TAMESIDE COLLEGE,Adults Early Intervention,Director of People,Refreshments,,12/01/2015,810,,Education
5186299,TAMESIDE SPORTS TRUST,Public Health,Director of Public Health,Leisure Services Contract Payment,,12/01/2015,"366,250.00",,Leisure Services
470599,TARMAC CENTRAL LIMITED,Environmental Services,Director of Place,General Materials,,12/01/2015,"14,413.37",,Highway Equipment & Materials�
470599,TARMAC CENTRAL LIMITED,Environmental Services,Director of Place,Debits Goods Received,,12/01/2015,"3,425.97",,Highway Equipment & Materials�
5186374,THE CHESHIRE & GREATER MANCHESTER COMMUNITY REHABILITATION COMPANY LTD,Environmental Services,Director of Place,Professional Services,,12/01/2015,"9,333.32",,Unclassifiable
5186725,ULVERSCROFT LARGE PRINT  BOOKS LTD,Stronger Communities,Director of People,Purchase Books,,12/01/2015,"1,851.65",,Education
5185330,UNIVERSITY HOSPITAL OF SOUTH MANCHESTER,Public Health,Director of Public Health,Professional Services,,12/01/2015,628.2,,Unclassifiable
470599,VAISALA LTD,Environmental Services,Director of Place,Proffessional Consultancy Services ,,12/01/2015,"17,344.50",,Environmental Services
5186380,VODAFONE LIMITED,Environmental Services,Director of Place,Engineers Works,,12/01/2015,960.56,,Information Communication Technology
470599,W DAVENPORT,Environmental Services,Director of Place,Sub-contractor Services,Business Payment,12/01/2015,890.4,,Unclassifiable
470599,W DAVENPORT,Multiple Heads of Service,Multiple Strategic Directorates,Tax Retained Sub Contractors,Business Payment,12/01/2015,-178.08,,Unclassifiable
5185050,WILLIAMS WOODWARD LTD,Finance,Director of Finance,Professional Consultancy Services,,12/01/2015,"4,150.00",,CONSULTANCY
470599,WOLSELEY UK LTD,Environmental Services,Director of Place,General Materials,,12/01/2015,655.63,,Highway Equipment & Materials�
470599,WOLSELEY UK LTD,Environmental Services,Director of Place,Debits Goods Received,,12/01/2015,"2,125.50",,Highway Equipment & Materials�
5186980,ABLE CARE AND SUPPORT SERVICES LTD,Adult Social Care,Director of People,Homecare Fees,,14/01/2015,"2,402.00",,Social Community Care Supplies & Services
5187146,ACORN RECOVERY PROJECTS,Public Health,Director of Public Health,Professional Services,,14/01/2015,"1,520.35",,Facilities & Management Services
5187162,ACORN RECOVERY PROJECTS,Public Health,Director of Public Health,Professional Services,,14/01/2015,742.5,,Facilities & Management Services
5187165,ACORN RECOVERY PROJECTS,Public Health,Director of Public Health,Professional Services,,14/01/2015,990,,Facilities & Management Services
5187166,ACORN RECOVERY PROJECTS,Public Health,Director of Public Health,Professional Services,,14/01/2015,"1,502.67",,Facilities & Management Services
5187167,ACORN RECOVERY PROJECTS,Public Health,Director of Public Health,Professional Services,,14/01/2015,813.21,,Facilities & Management Services
5187168,ACORN RECOVERY PROJECTS,Public Health,Director of Public Health,Professional Services,,14/01/2015,"2,124.43",,Facilities & Management Services
5187170,ACORN RECOVERY PROJECTS,Public Health,Director of Public Health,Professional Services,,14/01/2015,"1,555.71",,Facilities & Management Services
5187171,ACORN RECOVERY PROJECTS,Public Health,Director of Public Health,Professional Services,,14/01/2015,"1,555.71",,Facilities & Management Services
5187173,ACORN RECOVERY PROJECTS,Public Health,Director of Public Health,Professional Services,,14/01/2015,"1,555.71",,Facilities & Management Services
5187203,ADAPTACARE LTD,Development Growth & Investment,Director of Place,Adaptations - Small Jobs,,14/01/2015,595,,Social Community Care Supplies & Services
5187092,ADULLAM HOMES HOUSING ASSOC LTD,Stronger Communities,Director of People,Supporting People Gross Contract,,14/01/2015,"37,226.00",,Social Community Care Supplies & Services
5186742,AGE UK TAMESIDE,Adults Early Intervention,Director of People,Age Concern Fees,,14/01/2015,"4,660.00",,Environmental Services
5186701,ANVIL MASTERS,Environmental Services,Director of Place,General Materials,,14/01/2015,"2,050.00",,Building Construction Materials
5186744,ANVIL MASTERS,Environmental Services,Director of Place,General Materials,,14/01/2015,"1,460.00",,Building Construction Materials
5186684,ANVIL MASTERS,Multiple Heads of Service,Multiple Strategic Directorates,General Materials,,14/01/2015,"1,620.00",,Building Construction Materials
5186691,AON LIMITED,Corporate Costs,Corporate Costs,Professional Services ,,14/01/2015,"12,000.00",,Financial Services
5186916,ASHTON SIXTH FORM COLLEGE,Education,Director of People,Professional Services,,14/01/2015,"8,839.34",,Education
5186907,B MORRELL,Education,Director of People,Transport Of Pupils,Business Payment,14/01/2015,"1,500.00",,Social Community Care
5186893,B MORRELL,Environmental Services,Director of Place,Hired Transport,Business Payment,14/01/2015,795,,Social Community Care
5185256,BT PLC,Asset and Investment Partnership Management,Director of Place,Telephone Landline Costs,,14/01/2015,"1,118.00",,Information Communication Technology
5185264,BT PLC,Asset and Investment Partnership Management,Director of Place,Telephone Landline Costs,,14/01/2015,"1,621.88",,Information Communication Technology
5186476,BT PLC,Multiple Heads of Service,Multiple Strategic Directorates,Telephone Landline Costs,,14/01/2015,717.37,,Information Communication Technology
5186477,BT PLC,Multiple Heads of Service,Multiple Strategic Directorates,Telephone Landline Costs,,14/01/2015,"2,634.66",,Information Communication Technology
5187068,CARE IN MIND,Adult Social Care,Director of People,Residential Home Short Stay Fees,,14/01/2015,"2,931.30",,Social & Community
5187004,CARE UK HOMECARE,Adult Social Care,Director of People,Homecare Fees,,14/01/2015,"30,564.44",,Social Community Care Supplies & Services
5186974,COMFORT CALL LIMITED,Adult Social Care,Director of People,Homecare Fees,,14/01/2015,"34,257.26",,Medical
5186531,DAVID CROZIER,Education,Director of People,Transport Of Post 16 Pupils,Business Payment,14/01/2015,"1,569.00",,Unclassifiable
5186467,FRIENDS OF FAIRFIELD RAILWAY STATION,Adults Early Intervention,Director of People,Development Monies,,14/01/2015,500,,Charities and Voluntary Organisations
5186903,G M GREEN,Education,Director of People,Transport Of Pupils,Business Payment,14/01/2015,"1,050.00",,Unclassifiable
5186906,GLENN CAWTHORN,Education,Director of People,Transport Of Pupils,Business Payment,14/01/2015,885,,Transport
5186851,GLM ACCESSIBLE TRANSPORT,Education,Director of People,Transport Of Pupils,,14/01/2015,885,,Transport
5186879,GLM ACCESSIBLE TRANSPORT,Education,Director of People,Transport Of Pupils,,14/01/2015,"1,015.00",,Transport
5186885,GLM ACCESSIBLE TRANSPORT,Education,Director of People,Transport Of Post 16 Pupils,,14/01/2015,"1,200.00",,Transport
5186917,GLM ACCESSIBLE TRANSPORT,Education,Director of People,Additional Hire,,14/01/2015,750,,Transport
5187141,HALLE CONCERTS SOCIETY,Stronger Communities,Director of People,Professional Entertainment Services,,14/01/2015,615,,Leisure Services
5187020,HANDICARE LIMITED,Development Growth & Investment,Director of Place,Improvement Grants - Final Mandatory,,14/01/2015,"2,097.00",,Social Community Care
5186927,HOWARD COOK,Education,Director of People,Professional Services,Business Payment,14/01/2015,680,,Unclassifiable
5187026,JACKSON & TAYLOR LTD,Development Growth & Investment,Director of Place,Improvement Grants - Final Mandatory,,14/01/2015,"3,375.00",,"Works - Construction, Repair & Maintenance"
5185959,KALAMAZOO SECURE SOLUTIONS LTD,Finance,Director of Finance,Postages,,14/01/2015,12.95,,Facilities & Management Services
5185959,KALAMAZOO SECURE SOLUTIONS LTD,Finance,Director of Finance,Printing And Stationery,,14/01/2015,"1,660.46",,Facilities & Management Services
5186470,KIDDIVOUCHERS LTD,Multiple Heads of Service,Multiple Strategic Directorates,Fees,,14/01/2015,586.61,,Public Bodies
5187132,KROLL ONTRACK LTD,Digital Tameside,Director of Place,Repairs & Maintenance Of General Office Equipment,,14/01/2015,923.54,,Information Communication Technology
5186987,LAUREL BANK SUPPORT AT HOME,Adult Social Care,Director of People,Homecare Fees,,14/01/2015,504,,Social Community Care Supplies & Services
5187125,LEISA GRAY,Stronger Communities,Director of People,Professional Entertainment Services,Business Payment,14/01/2015,600,,Unclassifiable
5187036,M.C. & M.A. STEWART HAULAGE LTD,Environmental Services,Director of Place,General Materials,,14/01/2015,"2,160.00",,Horticultural
5186872,MARK HARLOW,Environmental Services,Director of Place,Hired Transport,Business Payment,14/01/2015,"1,190.00",,Transport
5186874,MARK HARLOW,Environmental Services,Director of Place,Hired Transport,Business Payment,14/01/2015,510,,Transport
5186892,MOSSLEY PRIVATE HIRE,Education,Director of People,Transport Of Pupils,,14/01/2015,"1,875.00",,Transport
5186894,MOSSLEY PRIVATE HIRE,Education,Director of People,Transport Of Pupils,,14/01/2015,"1,050.00",,Transport
5186877,MOSSLEY PRIVATE HIRE,Environmental Services,Director of Place,Hired Transport,,14/01/2015,"1,003.00",,Transport
5186890,MOSSLEY PRIVATE HIRE,Environmental Services,Director of Place,Hired Transport,,14/01/2015,942,,Transport
5186891,MOSSLEY PRIVATE HIRE,Environmental Services,Director of Place,Hired Transport,,14/01/2015,510,,Transport
5187060,MR JAMES TURLEY T/A R TURLEY PLUMBERS,Development Growth & Investment,Director of Place,Improvement Grants - Final Mandatory,,14/01/2015,"5,190.00",,"Works - Construction, Repair & Maintenance"
5186864,MR JOHN DELANEY,Education,Director of People,Transport Of Pupils,Business Payment,14/01/2015,"1,350.00",,Transport
5186896,MR JOHN DELANEY,Education,Director of People,Transport Of Pupils,Business Payment,14/01/2015,"1,500.00",,Transport
5186898,MR JOHN DELANEY,Education,Director of People,Transport Of Pupils,Business Payment,14/01/2015,"1,500.00",,Transport
5186899,MR JOHN DELANEY,Education,Director of People,Transport Of Post 16 Pupils,Business Payment,14/01/2015,"1,260.00",,Transport
5186895,MR JOHN DELANEY,Environmental Services,Director of Place,Hired Transport,Business Payment,14/01/2015,"1,445.00",,Transport
5186889, ,Adult Social Care,Director of People,Contribution to Maintenance Fee Income,Redacted Supplier,14/01/2015,"1,018.19",,Redacted
5186696,PATROL,Environmental Services,Director of Place,Court Fees,,14/01/2015,"3,223.55",,Unclassifiable
5186904,PAYPOINT COLLECTIONS LTD,Stronger Communities,Director of People,Emergency Grant Payments,,14/01/2015,"1,579.00",,Unclassifiable
5185476,PENNINE CAMPHILL COMMUNITY,Education,Director of People,Professional Services,,14/01/2015,"5,600.00",,Education
5187416,PENNINE CAMPHILL COMMUNITY,Education,Director of People,Professional Services,,14/01/2015,"2,400.00",,Education
5185620,RANDSTAD EDUCATION LIMITED,Childrens Services,Director of People,Professional Services,,14/01/2015,575,,Education
5186639,RANDSTAD EDUCATION LIMITED,Childrens Services,Director of People,Professional Child Services,,14/01/2015,575,,Education
5187256,RANDSTAD EDUCATION LIMITED,Childrens Services,Director of People,Professional Child Services,,14/01/2015,575,,Education
5187313,RANDSTAD EDUCATION LIMITED,Childrens Services,Director of People,Professional Child Services,,14/01/2015,575,,Education
5187151,RANDSTAD EDUCATION LIMITED,Education,Director of People,Agency Staff,,14/01/2015,575,,Education
5187152,RANDSTAD EDUCATION LIMITED,Education,Director of People,Agency Staff,,14/01/2015,995,,Education
5187153,RANDSTAD EDUCATION LIMITED,Education,Director of People,Agency Staff,,14/01/2015,995,,Education
5187263,RANDSTAD EDUCATION LIMITED,Education,Director of People,Agency Staff,,14/01/2015,"1,050.00",,Education
5187264,RANDSTAD EDUCATION LIMITED,Education,Director of People,Agency Staff,,14/01/2015,575,,Education
5187265,RANDSTAD EDUCATION LIMITED,Education,Director of People,Agency Staff,,14/01/2015,"1,050.00",,Education
5187267,RANDSTAD EDUCATION LIMITED,Education,Director of People,Agency Staff,,14/01/2015,"1,050.00",,Education
5187440,ROYAL MENCAP SOCIETY,Adult Social Care,Director of People,Voluntary Organisations Fees,,14/01/2015,"9,792.00",,Social Community Care Supplies & Services
29000016,S2 ENTERPRISE LTD T/A PENNY MEADOW PHARMACY,Public Health,Director of Public Health,Local Enhanced Services,,14/01/2015,"3,410.00",,Consultancy
29000017,S2 ENTERPRISE LTD T/A PENNY MEADOW PHARMACY,Public Health,Director of Public Health,Local Enhanced Services,,14/01/2015,"1,341.00",,Consultancy
5180404,SICO EUROPE LIMITED,Asset and Investment Partnership Management,Director of Place,Adaptations - Small Jobs,,14/01/2015,682,,Furniture
5184122,SICO EUROPE LIMITED,Asset and Investment Partnership Management,Director of Place,Adaptations - Small Jobs,,14/01/2015,786,,Furniture
5184123,SICO EUROPE LIMITED,Asset and Investment Partnership Management,Director of Place,Adaptations - Small Jobs,,14/01/2015,"1,092.00",,Furniture
5184126,SICO EUROPE LIMITED,Asset and Investment Partnership Management,Director of Place,Adaptations - Small Jobs,,14/01/2015,674,,Furniture
5184351,SICO EUROPE LIMITED,Asset and Investment Partnership Management,Director of Place,Adaptations - Small Jobs,,14/01/2015,769,,Furniture
5184352,SICO EUROPE LIMITED,Asset and Investment Partnership Management,Director of Place,Adaptations - Small Jobs,,14/01/2015,"1,026.00",,Furniture
5184354,SICO EUROPE LIMITED,Asset and Investment Partnership Management,Director of Place,Adaptations - Small Jobs,,14/01/2015,600,,Furniture
5184357,SICO EUROPE LIMITED,Asset and Investment Partnership Management,Director of Place,Adaptations - Small Jobs,,14/01/2015,601,,Furniture
5184359,SICO EUROPE LIMITED,Asset and Investment Partnership Management,Director of Place,Adaptations - Small Jobs,,14/01/2015,861,,Furniture
5184361,SICO EUROPE LIMITED,Asset and Investment Partnership Management,Director of Place,Adaptations - Small Jobs,,14/01/2015,819,,Furniture
5187301,SSI SCHAEFER LTD,Environmental Services,Director of Place,Waste Disposal Fees,,14/01/2015,"1,558.00",,Environmental Services
5186878,STAMFORD CARS UK LTD,Environmental Services,Director of Place,Hired Transport,,14/01/2015,600,,Transport
5186884,STAMFORD CARS UK LTD,Environmental Services,Director of Place,Hired Transport,,14/01/2015,880,,Transport
5186902,STAMFORD CARS UK LTD,Environmental Services,Director of Place,Hired Transport,,14/01/2015,585,,Transport
5180412,STOCKPORT MBC,Corporate Costs,Corporate Costs,Coroners Service Costs,,14/01/2015,"240,607.00",,Highway Equipment & Materials�
5186993,TAMESIDE ARTS LTD,Adult Social Care,Director of People,Professional Services,,14/01/2015,948.6,,Leisure Services
5186756,TAMESIDE COLLEGE,Education,Director of People,Professional Services,,14/01/2015,"368,595.00",,Education
5187149,TAMESIDE HOSPITAL NHS FOUNDATION TRUST,Public Health,Director of Public Health,Professional Services,,14/01/2015,"7,892.49",,Medical
5186985,TAMESIDE SPORTS TRUST,Adult Social Care,Director of People,Professional Services,,14/01/2015,"3,213.00",,Leisure Services
5187224,TAMESIDE SPORTS TRUST,Education,Director of People,Professional Services,,14/01/2015,984,,Leisure Services
5186051,TAMESIDE SPORTS TRUST,Strategy & Early Intervention,Director of People,Personal Needs Entertainments & Holidays,,14/01/2015,588,,Leisure Services
5185895,THE ETHEROW CENTRE CHARITABLE TRUST LTD,Public Health,Director of Public Health,General Lease,,14/01/2015,"3,750.00",,Financial Services
5185808,THE FURNISHING SERVICE LTD,Stronger Communities,Director of People,Fixtures & Fittings Purchase,,14/01/2015,"2,005.15",,Furniture
5185817,THE FURNISHING SERVICE LTD,Stronger Communities,Director of People,Fixtures & Fittings Purchase,,14/01/2015,509.46,,Furniture
5185820,TYNETEC,Adult Social Care,Director of People,It Equipment,,14/01/2015,"1,476.40",,Social Community Care
5187094,UNIT 4 BUSINESS SOFTWARE LIMITED,Finance,Director of Finance,Professional Consultancy Services,,14/01/2015,"9,000.00",,Financial Services
5187066,UNITED UTILITIES WATER LTD,Asset and Investment Partnership Management,Director of Place,Metered Water Costs,,14/01/2015,"1,117.73",,Utilities
5187073,UNITED UTILITIES WATER LTD,Asset and Investment Partnership Management,Director of Place,Metered Water Costs,,14/01/2015,617.68,,Utilities
5187242,UNITED UTILITIES WATER LTD,Asset and Investment Partnership Management,Director of Place,Metered Water Costs,,14/01/2015,940.86,,Utilities
5187073,UNITED UTILITIES WATER LTD,Environmental Services,Director of Place,Metered Water Costs,,14/01/2015,363.01,,Utilities
5186966,UNITED UTILITIES WATER PLC,Asset and Investment Partnership Management,Director of Place,Metered Water Costs,,14/01/2015,"1,092.90",,Utilities
5187078,UNITED UTILITIES WATER PLC,Asset and Investment Partnership Management,Director of Place,Metered Water Costs,,14/01/2015,"1,114.37",,Utilities
5183306,UPDATA INFRASTRUCTURE UK LTD,Multiple Heads of Service,Multiple Strategic Directorates,Telephone Landline Costs,,14/01/2015,"8,197.50",,Consultancy
5187358,UPDATA INFRASTRUCTURE UK LTD,Multiple Heads of Service,Multiple Strategic Directorates,Communications Equipment,,14/01/2015,"6,578.75",,Consultancy
5186598,VISION FOR EDUCATION LIMITED,Education,Director of People,Agency Staff,,14/01/2015,900,,Education
5186979,ABLE CARE AND SUPPORT SERVICES LTD,Adult Social Care,Director of People,Homecare Fees,,15/01/2015,"1,407.00",,Social Community Care Supplies & Services
5187058,ALLIED HEALTHCARE GROUP LTD (MEDICO),Adult Social Care,Director of People,Homecare Fees,,15/01/2015,"11,811.28",,Social Community Care Supplies & Services
5186215,AON LIMITED,Corporate Costs,Corporate Costs,Miscellaneous Insurance,,15/01/2015,"5,158.71",,Financial Services
5185250,BT PLC,Asset and Investment Partnership Management,Director of Place,Telephone Landline Costs,,15/01/2015,"1,963.23",,Information Communication Technology
5185260,BT PLC,Asset and Investment Partnership Management,Director of Place,Telephone Landline Costs,,15/01/2015,"1,963.23",,Information Communication Technology
5185261,BT PLC,Asset and Investment Partnership Management,Director of Place,Telephone Landline Costs,,15/01/2015,"2,040.18",,Information Communication Technology
5185993,BT PLC,Asset and Investment Partnership Management,Director of Place,Engineers -External,,15/01/2015,"36,094.69",,Information Communication Technology
5186475,BT PLC,Multiple Heads of Service,Multiple Strategic Directorates,Telephone Landline Costs,,15/01/2015,"14,069.26",,Information Communication Technology
3250491,BURNT TREE GROUP LIMITED,Environmental Services,Director of Place,Additional Hire,,15/01/2015,"4,490.60",,Vehicles
3250491,BURNT TREE GROUP LIMITED,Environmental Services,Director of Place,Core Hire,,15/01/2015,"1,311.00",,Vehicles
5186435,CASH BOX CREDIT UNION LTD,Stronger Communities,Director of People,Professional Services,,15/01/2015,"5,333.33",,Charities and Voluntary Organisations
5186929,CBS (NORTH WEST) LTD,Environmental Services,Director of Place,Engineers Works,,15/01/2015,"2,278.00",,"Works - Construction, Repair & Maintenance"
3250491,CHESHIRE TURF MACHINERY,Environmental Services,Director of Place,Debits Goods Received,,15/01/2015,"1,147.10",,Horticultural
5186154,CIVICA UK LTD,Digital Tameside,Director of Place,Computer Hardware Maintenance Costs,,15/01/2015,900,,Information Communication Technology
5186849,CONLON CONSTRUCTION,Asset and Investment Partnership Management,Director of Place,Refurbishment Construction Costs,,15/01/2015,"80,700.00",,"Works - Construction, Repair & Maintenance"
5185889,CORE INTEGRATED SOLUTIONS LTD,Development Growth & Investment,Director of Place,Professional Services,,15/01/2015,"1,165.00",,"Works - Construction, Repair & Maintenance"
5187262,COTSWOLD OUTDOOR LTD,Environmental Services,Director of Place,General Materials,,15/01/2015,"1,528.73",,Clothing
5187439,CREATIVE SUPPORT LTD,Adult Social Care,Director of People,Homecare Fees,,15/01/2015,"28,726.66",,Social Community Care Supplies & Services
5186982,DIRECT CARE (NORTH WEST) LTD,Adult Social Care,Director of People,Homecare Fees,,15/01/2015,"4,884.50",,Social Community Care Supplies & Services
5186983,DIRECT CARE (NORTH WEST) LTD,Adult Social Care,Director of People,Homecare Fees,,15/01/2015,"5,228.04",,Social Community Care Supplies & Services
3250491,DIRECT FILTER/ PARTS SUPPLY,Environmental Services,Director of Place,General Materials,,15/01/2015,92.91,,Vehicles
3250491,DIRECT FILTER/ PARTS SUPPLY,Environmental Services,Director of Place,Debits Goods Received,,15/01/2015,820.2,,Vehicles
5187013,ELECTRICITY NORTH WEST LTD,Environmental Services,Director of Place,Contractor Expenditure,,15/01/2015,610.7,,Utilities
3250491,F G ROWLAND LTD,Environmental Services,Director of Place,Core Hire,,15/01/2015,845,,Vehicles
5186657,FORBES SOLICITORS,Multiple Heads of Service,Multiple Strategic Directorates,Legal Fees,,15/01/2015,520.2,,Legal Services
3250491,GEESINK NORBA LTD,Environmental Services,Director of Place,General Materials,,15/01/2015,"1,013.83",,Environmental Services
5185695,H JENKINSON & CO LTD,Adult Social Care,Director of People,Fixtures & Fittings Purchase,,15/01/2015,601.2,,Furniture
5185441,HANDICARE LIMITED,Development Growth & Investment,Director of Place,Improvement Grants - Final Mandatory,,15/01/2015,"2,010.00",,Social Community Care
5186001,HANDICARE LIMITED,Development Growth & Investment,Director of Place,Improvement Grants - Final Mandatory,,15/01/2015,"1,594.25",,Social Community Care
5185933,HELEN WILKINSON,Stronger Communities,Director of People,Professional Services,Business Payment,15/01/2015,"3,000.00",,Financial Services
5187447,HOUSING 21,Stronger Communities,Director of People,Supporting People Gross Contract,,15/01/2015,"7,715.00",,Social Community Care Supplies & Services
5187327,IBI GROUP,Environmental Services,Director of Place,Professional Services,,15/01/2015,"2,000.00",,Consultancy
5180485,ICSA BOARDROOM APPS LTD,Digital Tameside,Director of Place,It Equipment,,15/01/2015,"27,718.75",,Information Communication Technology
5186203,IDOX SOFTWARE LIMITED,Development Growth & Investment,Director of Place,Computer Hardware Maintenance Costs,,15/01/2015,"3,450.00",,Information Communication Technology
5186547,INSPIREDSPACES TAMESIDE (PROJECTCO2) LTD,Asset and Investment Partnership Management,Director of Place,Free School Meal Costs,,15/01/2015,"14,194.20",,"Works - Construction, Repair & Maintenance"
5186547,INSPIREDSPACES TAMESIDE (PROJECTCO2) LTD,Asset and Investment Partnership Management,Director of Place,Professional Services,,15/01/2015,770.14,,"Works - Construction, Repair & Maintenance"
5186547,INSPIREDSPACES TAMESIDE (PROJECTCO2) LTD,Asset and Investment Partnership Management,Director of Place,Refreshments,,15/01/2015,"1,767.12",,"Works - Construction, Repair & Maintenance"
5186547,INSPIREDSPACES TAMESIDE (PROJECTCO2) LTD,Asset and Investment Partnership Management,Director of Place,Unitary Charge Payments,,15/01/2015,"818,185.36",,"Works - Construction, Repair & Maintenance"
5186547,INSPIREDSPACES TAMESIDE (PROJECTCO2) LTD,Asset and Investment Partnership Management,Director of Place,Utilities,,15/01/2015,"48,724.75",,"Works - Construction, Repair & Maintenance"
5186568,INSPIREDSPACES TAMESIDE LTD,Asset and Investment Partnership Management,Director of Place,Other Works,,15/01/2015,"17,330.24",,Consultancy
5186568,INSPIREDSPACES TAMESIDE LTD,Asset and Investment Partnership Management,Director of Place,Refurbishment Construction Costs,,15/01/2015,"82,825.34",,Consultancy
5186573,INSPIREDSPACES TAMESIDE LTD,Asset and Investment Partnership Management,Director of Place,Other Works,,15/01/2015,"14,769.50",,Consultancy
5186573,INSPIREDSPACES TAMESIDE LTD,Asset and Investment Partnership Management,Director of Place,Enabling Works,,15/01/2015,"10,448.27",,Consultancy
5186573,INSPIREDSPACES TAMESIDE LTD,Asset and Investment Partnership Management,Director of Place,Other Works,,15/01/2015,"27,109.21",,Consultancy
5186573,INSPIREDSPACES TAMESIDE LTD,Asset and Investment Partnership Management,Director of Place,Refurbishment Construction Costs,,15/01/2015,"2,861.25",,Consultancy
5186542,INSPIREDSPACES TAMESIDE LTD,Asset and Investment Partnership Management,Director of Place,Cleaning Materials,,15/01/2015,"2,537.51",,Consultancy
5186542,INSPIREDSPACES TAMESIDE LTD,Asset and Investment Partnership Management,Director of Place,Hired Transport,,15/01/2015,4.28,,Consultancy
5186542,INSPIREDSPACES TAMESIDE LTD,Asset and Investment Partnership Management,Director of Place,Professional Services,,15/01/2015,"31,401.86",,Consultancy
5186542,INSPIREDSPACES TAMESIDE LTD,Asset and Investment Partnership Management,Director of Place,Refreshments,,15/01/2015,"5,682.12",,Consultancy
5186542,INSPIREDSPACES TAMESIDE LTD,Asset and Investment Partnership Management,Director of Place,Uniforms/Clothing,,15/01/2015,"2,076.12",,Consultancy
5186552,INSPIREDSPACES TAMESIDE LTD,Asset and Investment Partnership Management,Director of Place,Free School Meal Costs,,15/01/2015,"1,998.75",,Consultancy
5186552,INSPIREDSPACES TAMESIDE LTD,Asset and Investment Partnership Management,Director of Place,Non-Authority Accommodation Rental,,15/01/2015,"65,222.66",,Consultancy
5186552,INSPIREDSPACES TAMESIDE LTD,Asset and Investment Partnership Management,Director of Place,Refreshments,,15/01/2015,"1,296.48",,Consultancy
5186552,INSPIREDSPACES TAMESIDE LTD,Asset and Investment Partnership Management,Director of Place,Utilities,,15/01/2015,"9,234.75",,Consultancy
5186542,INSPIREDSPACES TAMESIDE LTD,Asset and Investment Partnership Management,Director of Place,Agency Staff,,15/01/2015,"20,850.00",,Consultancy
5186548,INSPIREDSPACES TAMESIDE LTD,Asset and Investment Partnership Management,Director of Place,Other Works,,15/01/2015,"1,118,585.10",,Consultancy
5186568,INSPIREDSPACES TAMESIDE LTD,Asset and Investment Partnership Management,Director of Place,Hire Of Rooms,,15/01/2015,"-20,923.75",,Consultancy
5186568,INSPIREDSPACES TAMESIDE LTD,Asset and Investment Partnership Management,Director of Place,Other Works,,15/01/2015,"97,473.54",,Consultancy
5186568,INSPIREDSPACES TAMESIDE LTD,Asset and Investment Partnership Management,Director of Place,Professional Services,,15/01/2015,"32,312.00",,Consultancy
5186565,INSPIREDSPACES TAMESIDE LTD,Asset and Investment Partnership Management,Director of Place,Enabling Works,,15/01/2015,"250,000.00",,Consultancy
5186565,INSPIREDSPACES TAMESIDE LTD,Asset and Investment Partnership Management,Director of Place,Other Works,,15/01/2015,"668,240.76",,Consultancy
5186565,INSPIREDSPACES TAMESIDE LTD,Asset and Investment Partnership Management,Director of Place,Refurbish Accommodation Works,,15/01/2015,"446,485.18",,Consultancy
5186573,INSPIREDSPACES TAMESIDE LTD,Asset and Investment Partnership Management,Director of Place,Other Works,,15/01/2015,"261,417.05",,Consultancy
5186568,INSPIREDSPACES TAMESIDE LTD,Asset and Investment Partnership Management,Director of Place,Other Works,,15/01/2015,"100,774.16",,Consultancy
5186537,INSPIREDSPACES TAMESIDE(PROJECTCO1) LTD,Asset and Investment Partnership Management,Director of Place,Free School Meal Costs,,15/01/2015,"6,949.50",,"Works - Construction, Repair & Maintenance"
5186537,INSPIREDSPACES TAMESIDE(PROJECTCO1) LTD,Asset and Investment Partnership Management,Director of Place,Unitary Charge Payments,,15/01/2015,"493,869.08",,"Works - Construction, Repair & Maintenance"
5186537,INSPIREDSPACES TAMESIDE(PROJECTCO1) LTD,Asset and Investment Partnership Management,Director of Place,Utilities,,15/01/2015,"30,618.05",,"Works - Construction, Repair & Maintenance"
3250491,JOHNSTON SWEEPERS LTD,Environmental Services,Director of Place,General Materials,,15/01/2015,947.52,,Environmental Services
5185934,LIFELINE PROJECT LTD (PH),Public Health,Director of Public Health,Professional Services,,15/01/2015,"24,892.50",,Consultancy
3250491,M T KAILL(PLANT HIRE)LTD,Environmental Services,Director of Place,Additional Hire,,15/01/2015,"1,623.00",,Vehicles
3250491,M T KAILL(PLANT HIRE)LTD,Environmental Services,Director of Place,Workshop Recharges including Misuse & Damage Costs,,15/01/2015,300,,Vehicles
5186029,MANCHESTER CITY COUNCIL,Environmental Services,Director of Place,Ground/Land Rental,,15/01/2015,"2,850.00",,Financial Services
3250491,MANCHESTER VAN HIRE LTD,Environmental Services,Director of Place,Core Hire,,15/01/2015,506,,Vehicles
5186322,METRIC GROUP LTD,Environmental Services,Director of Place,General Materials,,15/01/2015,"1,646.51",,Traffic Management
5186275,MRL HEALTHCARE LIMITED,Adult Social Care,Director of People,Homecare Fees,,15/01/2015,"30,000.00",,Social Community Care Supplies & Services
5186700,NEW CHARTER HOUSING TRUST GROUP,Stronger Communities,Director of People,Contributions,,15/01/2015,"4,166.66",,Social Community Care Supplies & Services
5186319,NO EYED THEATRE,Stronger Communities,Director of People,Professional Entertainment Services,,15/01/2015,500,,Leisure Services
5186622,PAYPARTNERS LTD (MONTHLY),Adult Social Care,Director of People,Sub-contractor Services,,15/01/2015,"5,054.00",,Social Community Care Supplies & Services
5186812,PAYPARTNERS LTD (MONTHLY),Adult Social Care,Director of People,Sub-contractor Services,,15/01/2015,847,,Social Community Care Supplies & Services
5186814,PERSON CENTRED CARE SERVICES LIMITED,Adult Social Care,Director of People,Homecare Fees,,15/01/2015,"1,767.52",,Medical
5187041,PERSON CENTRED CARE SERVICES LIMITED,Adult Social Care,Director of People,Professional Services,,15/01/2015,"1,767.10",,Medical
3250491,PETER DOUGLASS PLATFORMS,Environmental Services,Director of Place,Replacement Hire,,15/01/2015,448,,Vehicles
3250491,PETER DOUGLASS PLATFORMS,Environmental Services,Director of Place,Workshop Recharges including Misuse & Damage Costs,,15/01/2015,60,,Vehicles
5186702,PG FABRICATIONS,Environmental Services,Director of Place,General Materials,,15/01/2015,"4,642.00",,"Works - Construction, Repair & Maintenance"
5185878,POSITIVE STEPS OLDHAM,Strategy & Early Intervention,Director of People,Professional Services,,15/01/2015,"12,328.77",,Unclassifiable
5186543,PYRAMID SCHOOLS (TAMESIDE) LTD,Asset and Investment Partnership Management,Director of Place,Unitary Charge Payments,,15/01/2015,"256,376.56",,"Works - Construction, Repair & Maintenance"
5186543,PYRAMID SCHOOLS (TAMESIDE) LTD,Asset and Investment Partnership Management,Director of Place,Unitary Charge Payments,,15/01/2015,"8,767.45",,"Works - Construction, Repair & Maintenance"
5185131,REGENDA LIMITED,Adult Social Care,Director of People,Non-Authority Accommodation Rental,,15/01/2015,"2,169.66",,Housing Management
5187436,ROYAL MENCAP SOCIETY,Adult Social Care,Director of People,Voluntary Organisations Fees,,15/01/2015,"12,362.40",,Social Community Care Supplies & Services
3250491,SHB HIRE LTD,Environmental Services,Director of Place,Core Hire,,15/01/2015,"12,053.50",,Vehicles
5187216,SICO EUROPE LIMITED,Asset and Investment Partnership Management,Director of Place,Adaptations - Small Jobs,,15/01/2015,546,,Furniture
5187351,SICO EUROPE LIMITED,Asset and Investment Partnership Management,Director of Place,Adaptations - Small Jobs,,15/01/2015,"1,569.00",,Furniture
3250491,SVR,Environmental Services,Director of Place,Additional Hire,,15/01/2015,"1,024.00",,Charities and Voluntary Organisations
5186095,TAMESIDE CITIZENS ADVICE BUREAU,Stronger Communities,Director of People,Grants to Citizens' Advice Bureau,,15/01/2015,"78,035.00",,Social Community Care Supplies & Services
3250491,TERBERG MATEC UK LTD,Environmental Services,Director of Place,General Materials,,15/01/2015,900.11,,Environmental Services
5186237,THE CONSERVATION VOLUNTEERS,Environmental Services,Director of Place,Voluntary Organisations Fees,,15/01/2015,960,,Human Resources
5185443,THE FURNISHING SERVICE LTD,Stronger Communities,Director of People,Fixtures & Fittings Purchase,,15/01/2015,"1,100.18",,Furniture
3250491,THE SUNLIGHT SERVICE GROUP LTD,Environmental Services,Director of Place,Cleaning Materials,,15/01/2015,249.68,,Catering
3250491,THE SUNLIGHT SERVICE GROUP LTD,Environmental Services,Director of Place,Protective Clothing,,15/01/2015,251,,Catering
5185418,THE TYRER PARTNERSHIP,Development Growth & Investment,Director of Place,Professional Consultancy Services,,15/01/2015,725,,CONSULTANCY
5186439,THYSSENKRUPP ELEVATOR UK LIMITED,Development Growth & Investment,Director of Place,Improvement Grants - Final Mandatory,,15/01/2015,"4,399.00",,Facilities & Management Services
5186244,TRIBAL EDUCATION LTD,Strategy & Early Intervention,Director of People,Computer Software Maintenance Costs,,15/01/2015,525,,Education
5186824,TRIBAL EDUCATION LTD,Strategy & Early Intervention,Director of People,Computer Software Maintenance Costs,,15/01/2015,"12,000.00",,Education
5185829,TURNING POINT SERVICES LTD,Adult Social Care,Director of People,Independent Sector Care Fees,,15/01/2015,"46,566.67",,Social Community Care
5183429,UPDATA INFRASTRUCTURE UK LTD,Multiple Heads of Service,Multiple Strategic Directorates,Telephone Landline Costs,,15/01/2015,"18,882.50",,Consultancy
5183443,UPDATA INFRASTRUCTURE UK LTD,Multiple Heads of Service,Multiple Strategic Directorates,Telephone Landline Costs,,15/01/2015,"22,470.00",,Consultancy
5187277,VISION FOR EDUCATION LIMITED,Education,Director of People,Agency Staff,,15/01/2015,900,,Education
5186842,W F HOWES LTD,Stronger Communities,Director of People,Purchase Books,,15/01/2015,895.05,,Education
5186149,XEROX (UK) LIMITED,Governance,Director of Governance,Printing And Stationery,,15/01/2015,"4,956.47",,Information Communication Technology
5187178,ABLE CARE AND SUPPORT SERVICES LTD,Adult Social Care,Director of People,Homecare Fees,,19/01/2015,"2,045.67",,Social Community Care Supplies & Services
5186661,ADVANCED HEALTH AND CARE,Adult Social Care,Director of People,It Equipment,,19/01/2015,"5,295.08",,Medical
470600,AGGREGATE INDUSTRIES UK LIMITED,Environmental Services,Director of Place,General Materials,,19/01/2015,"5,185.28",,Highway Equipment & Materials�
470600,AGGREGATE INDUSTRIES UK LIMITED,Environmental Services,Director of Place,Sub-contractor Services,,19/01/2015,"20,499.24",,Highway Equipment & Materials�
5187754,ALLIED HEALTHCARE GROUP LTD (MEDICO),Adult Social Care,Director of People,Homecare Fees,,19/01/2015,"12,832.08",,Social Community Care Supplies & Services
470600,ARCO LIMITED,Stronger Communities,Director of People,General Materials,,19/01/2015,80,,Clothing
470600,ARCO LIMITED,Stronger Communities,Director of People,General Materials,,19/01/2015,470.39,,Clothing
470600,ARCO LIMITED,Development Growth & Investment,Director of Place,General Materials,,19/01/2015,18.92,,Clothing
5187901,ARCO LIMITED,Environmental Services,Director of Place,Protective Clothing,,19/01/2015,649.2,,Clothing
470600,ARCO LIMITED,Environmental Services,Director of Place,General Materials,,19/01/2015,"2,249.94",,Clothing
470600,ARCO LIMITED,Environmental Services,Director of Place,Debits Goods Received,,19/01/2015,648.95,,Clothing
470600,BENCHMARK BUILDING SUPPLIES LTD,Environmental Services,Director of Place,General Materials,,19/01/2015,115.2,,Building Construction Materials
470600,BENCHMARK BUILDING SUPPLIES LTD,Environmental Services,Director of Place,Debits Goods Received,,19/01/2015,638.01,,Building Construction Materials
5186951,BLACK & WHITE PROMOTIONAL PRINT SERVICES,Governance,Director of Governance,Printing And Stationery,,19/01/2015,600,,Facilities & Management Services
470600,BLOK N MESH UK LTD,Environmental Services,Director of Place,General Materials,,19/01/2015,"1,445.00",,Building Construction Materials
5187686,BOLTON COLLEGE,Education,Director of People,Voluntary Organisations Fees,,19/01/2015,"1,327.33",,Unclassifiable
470600,BRAMHALL SURFACING LTD,Environmental Services,Director of Place,Sub-contractor Services,,19/01/2015,"25,941.94",,"Works - Construction, Repair & Maintenance"
5186640,CARDSAVE ONLINE LTD,Exchequer,Director of Finance,National Giro,,19/01/2015,"1,208.75",,Public Bodies
5187627,CATHOLIC BLIND INSTITUTE,Education,Director of People,Voluntary Organisations Fees,,19/01/2015,"8,814.00",,Social Community Care
5187628,CATHOLIC BLIND INSTITUTE,Education,Director of People,Voluntary Organisations Fees,,19/01/2015,"9,170.00",,Social Community Care
5187814,CATHOLIC BLIND INSTITUTE,Education,Director of People,Voluntary Organisations Fees,,19/01/2015,"8,814.00",,Social Community Care
470600,CBS (NORTH WEST) LTD,Environmental Services,Director of Place,Sub-contractor Services,,19/01/2015,"3,322.75",,"Works - Construction, Repair & Maintenance"
5187745,CHARTERED INSTITUTE OF ENVIRONMENTAL HEALTH,Environmental Services,Director of Place,Printing And Stationery,,19/01/2015,557.7,,Environmental Services
5187608,COMMUNITY AND VOLUNTARY ACTION TAMESIDE,Stronger Communities,Director of People,Professional Services,,19/01/2015,"34,000.00",,Financial Services
5187085,COOLSPIRIT LTD,Digital Tameside,Director of Place,Computer Software,,19/01/2015,"2,015.82",,Information Communication Technology
5187778,CREATIVE IDEAS IN PRINT LTD,Governance,Director of Governance,Printing And Stationery,,19/01/2015,"5,345.00",,Facilities & Management Services
5187878,CREATIVE IDEAS IN PRINT LTD,Governance,Director of Governance,Printing And Stationery,,19/01/2015,"3,521.93",,Facilities & Management Services
5187503,DR C M GREENOUGH & DR T K SPALDING PRACTICE A/C,Public Health,Director of Public Health,Professional Services,,19/01/2015,"2,515.50",,Medical
5187432,DR CAROLINE WHITE,Public Health,Director of Public Health,Training Course Costs,Business Payment,19/01/2015,"3,300.00",,Human Resources
470600,EAGLE CIVIL ENGINEERING LTD,Environmental Services,Director of Place,Sub-contractor Services,,19/01/2015,"12,846.23",,Highway Equipment & Materials�
5187667,ELECTORAL REFORM SERVICES,Governance,Director of Governance,Printing And Stationery,,19/01/2015,670.04,,Unclassifiable
5187696,ELECTORAL REFORM SERVICES,Governance,Director of Governance,Printing And Stationery,,19/01/2015,"2,424.55",,Unclassifiable
5187761,ELECTORAL REFORM SERVICES,Governance,Director of Governance,Printing And Stationery,,19/01/2015,"3,650.19",,Unclassifiable
5187722,,Adult Social Care,Director of People,Contribution to Maintenance Fee Income,Redacted Supplier,19/01/2015,"2,013.02",,Redacted
5187694,,Adult Social Care,Director of People,Contribution to Maintenance Fee Income,Redacted Supplier,19/01/2015,"3,400.31",,Redacted
5187973,FENTONS TAXIS,Education,Director of People,Transport Of Pupils,,19/01/2015,"1,245.00",,Transport
5187610,FURNACE CONSTRUCTION CREMATORS LIMITED,Environmental Services,Director of Place,Building Works,,19/01/2015,515,,"Works - Construction, Repair & Maintenance"
5187548,GREATER MANCHESTER COMBINED AUTHORITY,Environmental Services,Director of Place,Engineers -External,,19/01/2015,737.25,,Unclassifiable
5158728,GREATER MANCHESTER WASTE DISPOSAL AUTH.,Environmental Services,Director of Place,GMC Waste Disposal Levy,,19/01/2015,"1,478,750.00",,Environmental Services
5187929,GREATER MANCHESTER WEST MENTAL HEALTH FOUNDATION TRUST,Public Health,Director of Public Health,Professional Services,,19/01/2015,"1,380.00",,Medical
5188019,HOWARD COOK,Education,Director of People,Professional Services,Business Payment,19/01/2015,680,,Unclassifiable
5187892,ICOUNT,Finance,Director of Finance,Training Course Costs,,19/01/2015,550,,Human Resources
470600,INSTARMAC GROUP PLC,Environmental Services,Director of Place,Debits Goods Received,,19/01/2015,839.2,,Highway Equipment & Materials�
5187762,K P DODD CONSTRUCTION LTD,Development Growth & Investment,Director of Place,Improvement Grants - Final Mandatory,,19/01/2015,850,,"Works - Construction, Repair & Maintenance"
470600,KEN TAYLOR SUPPLIES LTD,Environmental Services,Director of Place,General Materials,,19/01/2015,"1,109.40",,Unclassifiable
470600,KEN TAYLOR SUPPLIES LTD,Environmental Services,Director of Place,Debits Goods Received,,19/01/2015,578.5,,Unclassifiable
5187457,KROLL ONTRACK LTD,Digital Tameside,Director of Place,Computer Hardware Maintenance Costs,,19/01/2015,998.16,,Information Communication Technology
5187656, ,Adult Social Care,Director of People,Day Care Fees,Redacted Supplier,19/01/2015,702.24,,Redacted
5173651,LIFELINE PROJECT,Public Health,Director of Public Health,Professional Services,,19/01/2015,"4,916.75",,Human Resources
5184018,LIFELINE PROJECT,Public Health,Director of Public Health,Professional Services,,19/01/2015,"8,364.00",,Human Resources
5185270,LIFELINE PROJECT,Public Health,Director of Public Health,Professional Services,,19/01/2015,"4,916.75",,Human Resources
5187963,LIME TRAVEL,Strategy & Early Intervention,Director of People,Hired Transport,,19/01/2015,"2,084.00",,Human Resources
5187001,M.C. & M.A. STEWART HAULAGE LTD,Environmental Services,Director of Place,General Materials,,19/01/2015,607.7,,Horticultural
5187598,MACINTYRE CARE,Education,Director of People,Voluntary Organisations Fees,,19/01/2015,"1,311.21",,Education
5187599,MACINTYRE CARE,Education,Director of People,Voluntary Organisations Fees,,19/01/2015,"1,465.47",,Education
5187837,MANCHESTER CITY COUNCIL,Corporate Costs,Corporate Costs,Contributions,,19/01/2015,"1,211.63",,Financial Services
5187482,MATTHEW COOKE T/A THE TRAINING CO,Governance,Director of Governance,Training Course Costs,,19/01/2015,750,,Unclassifiable
5187678,MERIDIAN HEALTHCARE LTD,Adult Social Care,Director of People,Day Centre Fees,,19/01/2015,"26,933.50",,Social Community Care Supplies & Services
5187476,MOSSCARE HOUSING LTD,Adult Social Care,Director of People,Non-Authority Accommodation Rental,,19/01/2015,"28,480.93",,Social Community Care Supplies & Services
5187964,MOSSLEY PRIVATE HIRE,Strategy & Early Intervention,Director of People,Hired Transport,,19/01/2015,870,,Transport
5187712, ,Adult Social Care,Director of People,Contribution to Maintenance Fee Income,Redacted Supplier,19/01/2015,628.62,,Redacted
5187208,NEIL SANDS PRODUCTIONS,Stronger Communities,Director of People,Professional Entertainment Services,,19/01/2015,641.67,,Leisure Services
470600,NEW CHARTER BUILD CO LTD,Environmental Services,Director of Place,Sub-contractor Services,,19/01/2015,"6,383.68",,"Works - Construction, Repair & Maintenance"
5187920,NORTH WEST CONSTRUCTION,Development Growth & Investment,Director of Place,Improvement Grants - Final Mandatory,,19/01/2015,"3,807.00",,"Works - Construction, Repair & Maintenance"
5186491,ORANGE PCS,Digital Tameside,Director of Place,Mobile Telephones,,19/01/2015,"6,482.26",,Information Communication Technology
5186493,ORANGE PCS,Digital Tameside,Director of Place,Mobile Telephones,,19/01/2015,"3,023.20",,Information Communication Technology
5186500,ORANGE PCS,Digital Tameside,Director of Place,Mobile Telephones,,19/01/2015,795.98,,Information Communication Technology
470600,P CASEY (ENVIRO) LTD,Environmental Services,Director of Place,Tipping Facility Fees,,19/01/2015,"4,354.26",,Public Bodies
5187559,PAUL KENNEDY DANCE STUDIOS,Corporate Costs,Corporate Costs,Contributions,,19/01/2015,750,,Leisure Services
5187669,PENNINE CARE IN PATIENT SERVS PRIORY,Education,Director of People,Voluntary Organisations Fees,,19/01/2015,"1,575.00",,Social Community Care
5187946,PERSON CENTRED CARE SERVICES LIMITED,Adult Social Care,Director of People,Homecare Fees,,19/01/2015,"2,102.48",,Medical
5186695,PG FABRICATIONS,Stronger Communities,Director of People,Grants to Organisations,,19/01/2015,636,,"Works - Construction, Repair & Maintenance"
5184080,PHS GROUP PLC,Environmental Services,Director of Place,Refuse Domestic Bin Purchases,,19/01/2015,"2,558.43",,Cleaning & Janitorial
5187681,POST OFFICE,Environmental Services,Director of Place,Motor Licence Costs,,19/01/2015,"2,250.00",,Mail Services
5187974,RADIO CABS (ASHTON)LTD,Environmental Services,Director of Place,Hired Transport,,19/01/2015,"1,001.60",,Transport
5187521,RIGBY TAYLOR LTD,Environmental Services,Director of Place,General Materials,,19/01/2015,"1,592.00",,Horticultural
5187024,ROYAL MAIL GROUP PLC,Exchequer,Director of Finance,Postages,,19/01/2015,"3,258.80",,Mail Services
5185125,SICO EUROPE LIMITED,Asset and Investment Partnership Management,Director of Place,Furniture And Fittings,,19/01/2015,670,,Furniture
5186740,ST LAWRENCE DENTON PCC,Environmental Services,Director of Place,General Materials,,19/01/2015,"12,000.00",,Non 3rd Party spend  
5187975,STAMFORD CARS UK LTD,Education,Director of People,Transport Of Ola Pupils,,19/01/2015,"1,237.50",,Transport
5187976,STAMFORD CARS UK LTD,Education,Director of People,Transport Of Ola Pupils,,19/01/2015,"2,032.50",,Transport
5187977,STAMFORD CARS UK LTD,Education,Director of People,Transport Of Ola Pupils,,19/01/2015,"2,400.00",,Transport
5187978,STAMFORD CARS UK LTD,Education,Director of People,Transport Of Pupils,,19/01/2015,"1,215.00",,Transport
5187979,STAMFORD CARS UK LTD,Education,Director of People,Transport Of Pupils,,19/01/2015,"1,215.00",,Transport
5187980,STAMFORD CARS UK LTD,Education,Director of People,Transport Of Post 16 Pupils,,19/01/2015,980,,Transport
5187983,STAMFORD CARS UK LTD,Education,Director of People,Transport Of Ola Pupils,,19/01/2015,"1,537.50",,Transport
5187984,STAMFORD CARS UK LTD,Education,Director of People,Transport Of Ola Pupils,,19/01/2015,"1,338.75",,Transport
5187990,STAMFORD CARS UK LTD,Education,Director of People,Transport Of Pupils,,19/01/2015,714,,Transport
5187993,STAMFORD CARS UK LTD,Education,Director of People,Transport Of Ola Pupils,,19/01/2015,945,,Transport
470600,STOCKPORT MBC,Environmental Services,Director of Place,General Materials,,19/01/2015,"1,712.25",,Highway Equipment & Materials�
5187646,T WOOD T/A STANDRICK HILL BOARDING KENNELS,Adult Social Care,Director of People,Property Protection Payments,,19/01/2015,648,,Environmental Services
5187693,TAMESIDE ARTS LTD,Adult Social Care,Director of People,Professional Services,,19/01/2015,"1,224.00",,Leisure Services
5187935,TAMESIDE COLLEGE,Governance,Director of Governance,Training Course Costs,,19/01/2015,"4,800.00",,Education
470600,TARMAC CENTRAL LIMITED,Environmental Services,Director of Place,General Materials,,19/01/2015,"4,894.82",,Highway Equipment & Materials�
470600,TARMAC CENTRAL LIMITED,Environmental Services,Director of Place,Debits Goods Received,,19/01/2015,607.04,,Highway Equipment & Materials�
5186603,TEMA EJO CONSULTANCY,Childrens Services,Director of People,Professional Services,,19/01/2015,"1,725.84",,CONSULTANCY
5187813,THE ASSOCIATION OF ELECTORAL ADMINISTRATORS LTD,Governance,Director of Governance,Training Course Costs,,19/01/2015,570,,Unclassifiable
5187808,THE CO-OP BANK PLC,Governance,Director of Governance,It Equipment,,19/01/2015,49,,Financial Services
5187808,THE CO-OP BANK PLC,Governance,Director of Governance,"Marketing, Publicity and Recruitment",,19/01/2015,299,,Financial Services
5187808,THE CO-OP BANK PLC,Development Growth & Investment,Director of Place,"Marketing, Publicity and Recruitment",,19/01/2015,372,,Financial Services
5187808,THE CO-OP BANK PLC,Digital Tameside,Director of Place,Telephone Landline Costs,,19/01/2015,54.91,,Financial Services
5175438,THE FURNISHING SERVICE LTD,Stronger Communities,Director of People,Fixtures & Fittings Purchase,,19/01/2015,636.6,,Furniture
5179524,THE FURNISHING SERVICE LTD,Stronger Communities,Director of People,Fixtures & Fittings Purchase,,19/01/2015,548.35,,Furniture
5182678,THE FURNISHING SERVICE LTD,Stronger Communities,Director of People,Fixtures & Fittings Purchase,,19/01/2015,"1,096.62",,Furniture
5186129,THE FURNISHING SERVICE LTD,Stronger Communities,Director of People,Fixtures & Fittings Purchase,,19/01/2015,"1,067.77",,Furniture
5186139,THE FURNISHING SERVICE LTD,Stronger Communities,Director of People,Fixtures & Fittings Purchase,,19/01/2015,642.16,,Furniture
5187523,THE FURNISHING SERVICE LTD,Stronger Communities,Director of People,Fixtures & Fittings Purchase,,19/01/2015,932.46,,Furniture
5187536,THE FURNISHING SERVICE LTD,Stronger Communities,Director of People,Fixtures & Fittings Purchase,,19/01/2015,"1,972.09",,Furniture
5187749,THE FURNISHING SERVICE LTD,Stronger Communities,Director of People,Fixtures & Fittings Purchase,,19/01/2015,932.46,,Furniture
5186440,TRIBAL EDUCATION LTD,Strategy & Early Intervention,Director of People,Computer Software,,19/01/2015,"10,000.00",,Education
5186442,TRIBAL EDUCATION LTD,Strategy & Early Intervention,Director of People,Computer Software,,19/01/2015,"25,000.00",,Education
5186442,TRIBAL EDUCATION LTD,Strategy & Early Intervention,Director of People,Computer Software Maintenance Costs,,19/01/2015,"5,000.00",,Education
5185957,TRINITY MIRROR NORTH PUBLISHING LTD,Governance,Director of Governance,Statutory Advertising,,19/01/2015,"5,000.00",,Public Bodies
5187465,TRINITY MIRROR NORTH PUBLISHING LTD,Digital Tameside,Director of Place,Statutory Advertising,,19/01/2015,"1,011.02",,Public Bodies
470600,VIATEC UK,Environmental Services,Director of Place,General Materials,,19/01/2015,"1,276.00",,Highway Equipment & Materials�
5185996,WILLIAMS WOODWARD LTD,Finance,Director of Finance,Professional Consultancy Services,,19/01/2015,"3,735.00",,CONSULTANCY
5188279,ACORN RECOVERY PROJECTS,Public Health,Director of Public Health,Professional Services,,21/01/2015,"1,644.11",,Facilities & Management Services
5188280,ACORN RECOVERY PROJECTS,Public Health,Director of Public Health,Professional Services,,21/01/2015,"1,113.75",,Facilities & Management Services
5188281,ACORN RECOVERY PROJECTS,Public Health,Director of Public Health,Professional Services,,21/01/2015,"1,644.11",,Facilities & Management Services
5188283,ACORN RECOVERY PROJECTS,Public Health,Director of Public Health,Professional Services,,21/01/2015,"2,192.14",,Facilities & Management Services
5188285,ACORN RECOVERY PROJECTS,Public Health,Director of Public Health,Professional Services,,21/01/2015,"1,644.11",,Facilities & Management Services
5188290,ACORN RECOVERY PROJECTS,Public Health,Director of Public Health,Professional Services,,21/01/2015,901.61,,Facilities & Management Services
5188292,ACORN RECOVERY PROJECTS,Public Health,Director of Public Health,Professional Services,,21/01/2015,"1,060.71",,Facilities & Management Services
5188294,ACORN RECOVERY PROJECTS,Public Health,Director of Public Health,Professional Services,,21/01/2015,"2,192.14",,Facilities & Management Services
5188297,ACORN RECOVERY PROJECTS,Public Health,Director of Public Health,Professional Services,,21/01/2015,"2,192.14",,Facilities & Management Services
5188298,ACORN RECOVERY PROJECTS,Public Health,Director of Public Health,Professional Services,,21/01/2015,"1,644.11",,Facilities & Management Services
5188300,ACORN RECOVERY PROJECTS,Public Health,Director of Public Health,Professional Services,,21/01/2015,"1,644.11",,Facilities & Management Services
5186133,ACTION FOR CHILDREN,Strategy & Early Intervention,Director of People,Professional Services, ,21/01/2015,"25,336.00",,Social Community Care
5187861,AGRICULTURAL AND RURAL CENTRE CIC,Education,Director of People,Professional Services,,21/01/2015,960,,Education
5187516,ALTERNATIVE FUTURES GROUP,Adult Social Care,Director of People,Homecare Fees,,21/01/2015,"51,000.00",,Social Community Care Supplies & Services
5188183,BERTRAM LIBRARY SERVICES,Stronger Communities,Director of People,Purchase Books,,21/01/2015,"20,617.81",,Education
5185714,BRENTWOOD MOSS NURSERIES,Environmental Services,Director of Place,Tree Planting Programme,,21/01/2015,"1,625.00",,Horticultural
5188092,BT PLC,Adult Social Care,Director of People,Telephone Landline Costs,,21/01/2015,700.75,,Information Communication Technology
5178482,CARE UK HOMECARE,Adult Social Care,Director of People,Homecare Fees,,21/01/2015,"3,486.38",,Social Community Care Supplies & Services
5185601,CARE UK HOMECARE,Adult Social Care,Director of People,Homecare Fees,,21/01/2015,"3,486.38",,Social Community Care Supplies & Services
5187869,CARE UK HOMECARE,Adult Social Care,Director of People,Homecare Fees,,21/01/2015,"3,722.83",,Social Community Care Supplies & Services
5186437,CASH BOX CREDIT UNION,Stronger Communities,Director of People,Emergency Grant Payments,,21/01/2015,"20,000.00",,Public Bodies
5188197,CITY LIFT SERVICES (NW) LTD,Adult Social Care,Director of People,Adaptations To Buildings,,21/01/2015,"16,135.00",,"Works - Construction, Repair & Maintenance"
5187824,COMFORT CALL LIMITED,Adult Social Care,Director of People,Homecare Fees,,21/01/2015,"31,800.62",,Medical
5188081,COMFORT CALL LIMITED,Adult Social Care,Director of People,Homecare Fees,,21/01/2015,"33,923.90",,Medical
5186465,COMMUNITY AND VOLUNTARY ACTION TAMESIDE,Adults Early Intervention,Director of People,Development Monies,,21/01/2015,"11,732.04",,Financial Services
5187449,COMMUNITY LED INITIATIVES CIC,Public Health,Director of Public Health,Professional Services,,21/01/2015,"9,375.00",,Social & Community
5187468,COMMUNITY LED INITIATIVES CIC,Public Health,Director of Public Health,Professional Services,,21/01/2015,"17,627.50",,Social & Community
5182642,CREATIVE SUPPORT LTD,Adult Social Care,Director of People,Homecare Fees,,21/01/2015,"1,330.82",,Social Community Care Supplies & Services
5182671,CREATIVE SUPPORT LTD,Adult Social Care,Director of People,Homecare Fees,,21/01/2015,"1,330.82",,Social Community Care Supplies & Services
5188118,CYCLESCHEME LTD,Multiple Heads of Service,Multiple Strategic Directorates,General Equipment Purchase,,21/01/2015,832.5,,Unclassifiable
5186556,DOMAIN CARE NORTH WEST LTD,Adult Social Care,Director of People,Homecare Fees,,21/01/2015,639.6,,Social Community Care
5186557,DOMAIN CARE NORTH WEST LTD,Adult Social Care,Director of People,Homecare Fees,,21/01/2015,"1,440.00",,Social Community Care
5186559,DOMAIN CARE NORTH WEST LTD,Adult Social Care,Director of People,Homecare Fees,,21/01/2015,799.5,,Social Community Care
5186560,DOMAIN CARE NORTH WEST LTD,Adult Social Care,Director of People,Homecare Fees,,21/01/2015,"3,960.00",,Social Community Care
5187223,DOMAIN CARE NORTH WEST LTD,Adult Social Care,Director of People,Homecare Fees,,21/01/2015,"1,440.00",,Social Community Care
5187250,DOMAIN CARE NORTH WEST LTD,Adult Social Care,Director of People,Homecare Fees,,21/01/2015,799.5,,Social Community Care
5187260,DOMAIN CARE NORTH WEST LTD,Adult Social Care,Director of People,Homecare Fees,,21/01/2015,"2,100.00",,Social Community Care
5187325,DOMAIN CARE NORTH WEST LTD,Adult Social Care,Director of People,Homecare Fees,,21/01/2015,639.6,,Social Community Care
5178153,DTZ,Development Growth & Investment,Director of Place,Professional Consultancy Services,,21/01/2015,"2,000.00",,Consultancy
5183202,GETRONICS UNIFIED COMMUNICATIONS UK LIMITED,Asset and Investment Partnership Management,Director of Place,It Equipment,,21/01/2015,"3,540.00",,Information Communication Technology
5187108,GETRONICS UNIFIED COMMUNICATIONS UK LIMITED,Asset and Investment Partnership Management,Director of Place,Communications Equipment,,21/01/2015,"3,618.00",,Information Communication Technology
5187839,HMRC,Multiple Heads of Service,Multiple Strategic Directorates,Tax Paid Sub Contractors,,21/01/2015,"21,949.25",,Unclassifiable
5186325,ICSA BOARDROOM APPS LTD,Digital Tameside,Director of Place,Computer Hardware Maintenance Costs,,21/01/2015,"11,393.23",,Information Communication Technology
5188116,,Development Growth & Investment,Director of Place,Improvement Grants - Final Mandatory,Redacted Supplier,21/01/2015,"2,000.00",,Redacted
5188338,LIQUIDLOGIC LTD,Adult Social Care,Director of People,Computer Software,,21/01/2015,"8,000.00",,Information Communication Technology
5187893,LOCAL GOVERNMENT  INFORMATION UNIT,Corporate Costs,Corporate Costs,Subscriptions,,21/01/2015,"18,995.00",,Human Resources
5187069,M.E.L RESEARCH LTD,Public Health,Director of Public Health,Professional Services,,21/01/2015,"24,842.50",,Unclassifiable
5187402,MAKING SPACE,Adult Social Care,Director of People,Voluntary Organisations Fees,,21/01/2015,"20,735.75",,Social Community Care Supplies & Services
5188122,MANCHESTER CAMERATA LTD,Public Health,Director of Public Health,Professional Services,,21/01/2015,"8,000.00",,Leisure Services
5184060,NEW BRIDGE HORIZONS,Adult Social Care,Director of People,Homecare Fees,,21/01/2015,"1,984.75",,Social Community Care Supplies & Services
5184671,NEW BRIDGE HORIZONS,Adult Social Care,Director of People,Homecare Fees,,21/01/2015,508,,Social Community Care Supplies & Services
5184682,NEW BRIDGE HORIZONS,Adult Social Care,Director of People,Homecare Fees,,21/01/2015,"2,335.00",,Social Community Care Supplies & Services
5185584,NEW BRIDGE HORIZONS,Adult Social Care,Director of People,Homecare Fees,,21/01/2015,"2,317.50",,Social Community Care Supplies & Services
5185588,NEW BRIDGE HORIZONS,Adult Social Care,Director of People,Homecare Fees,,21/01/2015,"2,335.00",,Social Community Care Supplies & Services
5186990,NEW BRIDGE HORIZONS,Adult Social Care,Director of People,Homecare Fees,,21/01/2015,"1,754.75",,Social Community Care Supplies & Services
5186994,NEW BRIDGE HORIZONS,Adult Social Care,Director of People,Homecare Fees,,21/01/2015,"1,517.75",,Social Community Care Supplies & Services
5188087,NORTH WEST COMMUNITY  SERVICES (GTR M/CR) LTD,Adult Social Care,Director of People,Homecare Fees,,21/01/2015,"11,048.80",,Social Community Care Supplies & Services
5187518,OLDHAM COLLEGE,Development Growth & Investment,Director of Place,Training Course Costs,,21/01/2015,"2,995.00",,Education
5185845,OSMIS EDUCATION LIMITED,Digital Tameside,Director of Place,Professional Services,,21/01/2015,"2,250.00",,Information Communication Technology
5188188,PAYPARTNERS LTD (MONTHLY),Adult Social Care,Director of People,Sub-contractor Services,,21/01/2015,756,,Social Community Care Supplies & Services
5188117,PAYPOINT COLLECTIONS LTD,Stronger Communities,Director of People,Emergency Grant Payments,,21/01/2015,"2,199.00",,Unclassifiable
5186692,PG FABRICATIONS,Environmental Services,Director of Place,General Materials,,21/01/2015,580,,"Works - Construction, Repair & Maintenance"
5186266,POSITIVE STEPS OLDHAM,Strategy & Early Intervention,Director of People,Professional Services,,21/01/2015,"25,890.41",,Unclassifiable
5187871,RANDSTAD EDUCATION LIMITED,Education,Director of People,Agency Staff,,21/01/2015,520,,Education
5187875,RANDSTAD EDUCATION LIMITED,Education,Director of People,Day Care Fees,,21/01/2015,650,,Education
5188051,RANDSTAD EDUCATION LIMITED,Education,Director of People,Agency Staff,,21/01/2015,650,,Education
5188099,RANDSTAD EDUCATION LIMITED,Education,Director of People,Agency Staff,,21/01/2015,"1,050.00",,Education
5187061,RAYMOND C HARRISON BUILDERS,Development Growth & Investment,Director of Place,Improvement Grants - Final Mandatory,,21/01/2015,"4,738.00",,"Works - Construction, Repair & Maintenance"
5184147,ROYAL MENCAP SOCIETY,Adult Social Care,Director of People,Voluntary Organisations Fees,,21/01/2015,"12,000.00",,Social Community Care Supplies & Services
5184148,ROYAL MENCAP SOCIETY,Adult Social Care,Director of People,Voluntary Organisations Fees,,21/01/2015,"9,690.00",,Social Community Care Supplies & Services
5187508,ROYAL MENCAP SOCIETY,Adult Social Care,Director of People,Voluntary Organisations Fees,,21/01/2015,"1,260.00",,Social Community Care Supplies & Services
5186549,SAS DANIELS LLP,Corporate Costs,Corporate Costs,Legal Fees,,21/01/2015,"1,305.00",,Legal Services
5188342,STAMFORD CARS UK LTD,Education,Director of People,Transport Of Pupils,,21/01/2015,945,,Transport
5188344,STAMFORD CARS UK LTD,Education,Director of People,Transport Of Pupils,,21/01/2015,712.5,,Transport
5188345,STAMFORD CARS UK LTD,Education,Director of People,Transport Of Pupils,,21/01/2015,"1,018.63",,Transport
5188346,STAMFORD CARS UK LTD,Education,Director of People,Transport Of Post 16 Pupils,,21/01/2015,726,,Transport
5188347,STAMFORD CARS UK LTD,Education,Director of People,Transport Of Ola Pupils,,21/01/2015,"1,376.25",,Transport
5188349,STAMFORD CARS UK LTD,Education,Director of People,Transport Of Pupils,,21/01/2015,891,,Transport
5188350,STAMFORD CARS UK LTD,Education,Director of People,Transport Of Pupils,,21/01/2015,"1,380.00",,Transport
5188351,STAMFORD CARS UK LTD,Education,Director of People,Transport Of Pupils,,21/01/2015,"1,113.75",,Transport
5188352,STAMFORD CARS UK LTD,Education,Director of People,Transport Of Pupils,,21/01/2015,"1,215.00",,Transport
5188353,STAMFORD CARS UK LTD,Education,Director of People,Transport Of Pupils,,21/01/2015,"1,005.00",,Transport
5188354,STAMFORD CARS UK LTD,Education,Director of People,Transport Of Ola Pupils,,21/01/2015,"1,413.75",,Transport
5187055,STANNAH LIFT SERVICES LTD,Development Growth & Investment,Director of Place,Improvement Grants - Final Mandatory,,21/01/2015,"1,985.00",,Social Community Care
5184718,STOCKPORT CP  SOCIETY,Adult Social Care,Director of People,Day Centre Fees, ,21/01/2015,805.08,,Social Community Care Supplies & Services
5186323,STOCKPORT NHS FOUNDATION TRUST,Childrens Services,Director of People,Homecare Fees,,21/01/2015,"1,891.00",,Medical
5187289,TAMESIDE HOSPITAL NHS FOUNDATION TRUST,Governance,Director of Governance,Professional Medical Services,,21/01/2015,"3,526.00",,Medical
5187809,TAMESIDE HOSPITAL NHS FOUNDATION TRUST,Public Health,Director of Public Health,Professional Services,,21/01/2015,"3,160.25",,Medical
5187850,TAMESIDE LINK,Adult Social Care,Director of People,Voluntary Organisations Fees,,21/01/2015,"15,086.32",,Social Community Care Supplies & Services
5187853,TAMESIDE LINK,Adult Social Care,Director of People,Voluntary Organisations Fees,,21/01/2015,"15,086.32",,Social Community Care Supplies & Services
5187997,TAMESIDE SPORTS TRUST,Strategy & Early Intervention,Director of People,Child Care Fees,,21/01/2015,600,,Leisure Services
5188030,TARVIN SANDS FISHERY,Development Growth & Investment,Director of Place,General Materials,,21/01/2015,900,,Unclassifiable
5186697,THRESHOLD HOUSING PROJECT,Stronger Communities,Director of People,Supporting People Gross Contract,,21/01/2015,"14,666.66",,Housing Management
5186739,THRESHOLD HOUSING PROJECT,Stronger Communities,Director of People,Supporting People Gross Contract,,21/01/2015,"30,833.33",,Housing Management
5187563,TMP UK LTD,Education,Director of People,Statutory Advertising,,21/01/2015,865,,Human Resources
5187564,TMP UK LTD,Education,Director of People,Statutory Advertising,,21/01/2015,865,,Human Resources
5186779,TMP UK LTD,Development Growth & Investment,Director of Place,"Marketing, Publicity and Recruitment",,21/01/2015,"1,258.60",,Human Resources
5187845,WORKS 4U SUPPORT SERVICES LIMITED,Education,Director of People,Professional Services,,21/01/2015,685,,Human Resources
5188079,ABLE CARE AND SUPPORT SERVICES LTD,Adult Social Care,Director of People,Homecare Fees,,22/01/2015,"1,800.00",,Social Community Care Supplies & Services
5187746,ALLIED HEALTHCARE GROUP LTD (MEDICO),Adult Social Care,Director of People,Homecare Fees,,22/01/2015,"13,623.50",,Social Community Care Supplies & Services
5187888,ARCO LIMITED,Environmental Services,Director of Place,General Materials,,22/01/2015,520.32,,Clothing
5188156,B A HODCROFT,Environmental Services,Director of Place,Plaques,Business Payment,22/01/2015,930,,Cemetery & Crematorium
5188508,BOLTON MBC,Education,Director of People,Professional Consultancy Services,,22/01/2015,"8,192.00",,Human Resources
5188374,BRIAN GLYNN & CO,Development Growth & Investment,Director of Place,Improvement Grants - Final Mandatory,,22/01/2015,"3,020.00",,"Works - Construction, Repair & Maintenance"
5188407,CBS (NORTH WEST) LTD,Environmental Services,Director of Place,Building Maintenance,,22/01/2015,644.3,,"Works - Construction, Repair & Maintenance"
5188416,CLAIRE SWEENEY MUSIC,Education,Director of People,Professional Services,,22/01/2015,557.58,,Education
5187606,COMMUNITY AND VOLUNTARY ACTION TAMESIDE,Adult Social Care,Director of People,Grants,,22/01/2015,"17,070.00",,Financial Services
5187607,COMMUNITY AND VOLUNTARY ACTION TAMESIDE,Stronger Communities,Director of People,Grants to Organisations,,22/01/2015,"27,693.00",,Financial Services
5184070,COMMUNITY INTEGRATED CARE,Adult Social Care,Director of People,Homecare Fees,,22/01/2015,"18,360.00",,Social Community Care Supplies & Services
5188429,CREATIVE SUPPORT LTD,Adult Social Care,Director of People,Residential Home Long Stay Fees,,22/01/2015,"1,661.52",,Social Community Care Supplies & Services
5187574,DBS,Governance,Director of Governance,Professional Consultancy Services,,22/01/2015,"2,992.00",,Human Resources
5187038,DR RICHARD SKELTON,Education,Director of People,Professional Services,Business Payment,22/01/2015,"3,200.00",,Medical
5188665,G4S CASH SOLUTIONS (UK) LIMITED,Governance,Director of Governance,Security Services,,22/01/2015,55.97,,Facilities & Management Services
5188665,G4S CASH SOLUTIONS (UK) LIMITED,Stronger Communities,Director of People,Security Services,,22/01/2015,391.76,,Facilities & Management Services
5188665,G4S CASH SOLUTIONS (UK) LIMITED,Environmental Services,Director of Place,Security Services,,22/01/2015,55.97,,Facilities & Management Services
5183147,GETRONICS UNIFIED COMMUNICATIONS UK LIMITED,Asset and Investment Partnership Management,Director of Place,It Equipment,,22/01/2015,"3,010.00",,Information Communication Technology
5187668,GETRONICS UNIFIED COMMUNICATIONS UK LIMITED,Digital Tameside,Director of Place,Telephone Landline Costs,,22/01/2015,"9,332.00",,Information Communication Technology
5188461,GRAFTON HOUSE ENTERTAINMENT COMMITTEE,Adults Early Intervention,Director of People,Refreshments,,22/01/2015,600,,Facilities & Management Services
5188392,HANDICARE LIMITED,Development Growth & Investment,Director of Place,Improvement Grants - Final Mandatory,,22/01/2015,"2,182.00",,Social Community Care
5188553,HMCTS,Childrens Services,Director of People,Court Fees,,22/01/2015,"9,130.00",,Unclassifiable
5188493,HOMESTART TAMESIDE & OLDHAM,Public Health,Director of Public Health,Training Course Costs,,22/01/2015,"1,790.00",,Social Community Care Supplies & Services
5187120,INSPIREDSPACES TAMESIDE LTD,Childrens Services,Director of People,Refurbishment Construction Costs,,22/01/2015,"13,080.00",,Consultancy
5187120,INSPIREDSPACES TAMESIDE LTD,Asset and Investment Partnership Management,Director of Place,Computer Hardware,,22/01/2015,"14,028.23",,Consultancy
5187120,INSPIREDSPACES TAMESIDE LTD,Asset and Investment Partnership Management,Director of Place,Drainage Works,,22/01/2015,"2,725.00",,Consultancy
5188025,MATTHEW COOKE T/A THE TRAINING CO,Governance,Director of Governance,Training Course Costs,,22/01/2015,693,,Unclassifiable
5188341,MIDLAND SOFTWARE LTD,Governance,Director of Governance,Computer Software,,22/01/2015,"3,041.00",,Information Communication Technology
5188343,MIDLAND SOFTWARE LTD,Governance,Director of Governance,Computer Software,,22/01/2015,"11,037.00",,Information Communication Technology
5188676,MRL HEALTHCARE LIMITED,Adult Social Care,Director of People,Homecare Fees,,22/01/2015,"30,000.00",,Social Community Care Supplies & Services
5187000,NEW BRIDGE HORIZONS,Adult Social Care,Director of People,Homecare Fees,,22/01/2015,"1,751.25",,Social Community Care Supplies & Services
5188513,NEW BRIDGE HORIZONS,Adult Social Care,Director of People,Homecare Fees,,22/01/2015,"1,751.25",,Social Community Care Supplies & Services
5188514,NEW BRIDGE HORIZONS,Adult Social Care,Director of People,Homecare Fees,,22/01/2015,"1,517.25",,Social Community Care Supplies & Services
5188515,NEW BRIDGE HORIZONS,Adult Social Care,Director of People,Homecare Fees,,22/01/2015,"1,751.25",,Social Community Care Supplies & Services
5187490,NEW CHARTER HOUSING TRUST GROUP,Childrens Services,Director of People,Non-Authority Accommodation Rental,,22/01/2015,"16,284.44",,Social Community Care Supplies & Services
5187911,NEW CHARTER HOUSING TRUST GROUP,Childrens Services,Director of People,Planning Fees,,22/01/2015,"3,458.83",,Social Community Care Supplies & Services
5186699,NEW CHARTER HOUSING TRUST GROUP,Stronger Communities,Director of People,Housing Aid Function,,22/01/2015,"33,740.57",,Social Community Care Supplies & Services
5186743,NEW CHARTER HOUSING TRUST GROUP,Stronger Communities,Director of People,Authority Accommodation Rental,,22/01/2015,"11,421.39",,Social Community Care Supplies & Services
5186746,NEW CHARTER HOUSING TRUST GROUP,Stronger Communities,Director of People,Supporting People Gross Contract,,22/01/2015,"20,022.16",,Social Community Care Supplies & Services
5186760,NEW CHARTER HOUSING TRUST GROUP,Stronger Communities,Director of People,Lettings/Waiting List,,22/01/2015,"19,679.25",,Social Community Care Supplies & Services
5187911,NEW CHARTER HOUSING TRUST GROUP,Stronger Communities,Director of People,Supporting People Gross Contract,,22/01/2015,"25,599.75",,Social Community Care Supplies & Services
5187911,NEW CHARTER HOUSING TRUST GROUP,Public Health,Director of Public Health,Supporting People Gross Contract,,22/01/2015,"13,176.25",,Social Community Care Supplies & Services
5188321,OMNIPLEX,Governance,Director of Governance,Licences,,22/01/2015,"1,480.00",,Unclassifiable
5186434,ORANGE,Governance,Director of Governance,Mobile Telephones,,22/01/2015,"29,295.00",,Information Communication Technology
5185071,ORANGE,Digital Tameside,Director of Place,Telephone Landline Costs,,22/01/2015,"2,915.00",,Information Communication Technology
5188440,PAYPARTNERS LTD (MONTHLY),Adult Social Care,Director of People,Sub-contractor Services,,22/01/2015,"5,012.00",,Social Community Care Supplies & Services
5186749,PENNINE CARE NHS TRUST,Public Health,Director of Public Health,Professional Services,,22/01/2015,"256,203.00",,Social Community Care Supplies & Services
5187505,PROFILE SECURITY SERVICES LIMITED,Asset and Investment Partnership Management,Director of Place,Security Equipment,,22/01/2015,"10,697.32",,Facilities & Management Services
5188426,PROQUEST INFORMATION  AND LEARNING LTD,Stronger Communities,Director of People,Purchase Books,,22/01/2015,"2,655.00",,Human Resources
5188160,QUEST MEDIA NETWORKS LTD,Governance,Director of Governance,"Marketing, Publicity and Recruitment",,22/01/2015,620,,Unclassifiable
5188038,ROSS AUTO ENGINEERING LIMITED,Adult Social Care,Director of People,Joint Loans Store Fee,,22/01/2015,"125,822.88",,Social Community Care
5187890,ROYAL MAIL GROUP PLC,Exchequer,Director of Finance,Postages,,22/01/2015,"2,061.99",,Mail Services
5187249,SANCTUARY HOUSING  ASSOCIATION,Asset and Investment Partnership Management,Director of Place,Non-Authority Accommodation Rental,,22/01/2015,"2,902.07",,Housing Management
5188006,SICO EUROPE LIMITED,Asset and Investment Partnership Management,Director of Place,Adaptations - Small Jobs,,22/01/2015,819,,Furniture
5187090,THE CARE TEAM LTD,Stronger Communities,Director of People,Professional Medical Services,,22/01/2015,"1,200.00",,Unclassifiable
5186370,THE FURNISHING SERVICE LTD,Stronger Communities,Director of People,Fixtures & Fittings Purchase,,22/01/2015,891.7,,Furniture
5186433,THE FURNISHING SERVICE LTD,Stronger Communities,Director of People,Fixtures & Fittings Purchase,,22/01/2015,"1,085.27",,Furniture
5188191,THE UNIVERSITY OF MANCHESTER,Adult Social Care,Director of People,Training Course Costs,,22/01/2015,665,,Education
5188192,THE UNIVERSITY OF MANCHESTER,Adult Social Care,Director of People,Training Course Costs,,22/01/2015,665,,Education
5188364, ,Adult Social Care,Director of People,Day Care Fees,Redacted Supplier,22/01/2015,682.2,,Redacted
5187083,WILDE CONSULTING ENGINEERS,Environmental Services,Director of Place,Engineers Works,,22/01/2015,"1,980.00",,Consultancy
5188674,WORLDPAY,Exchequer,Director of Finance,PDQ Fees,,22/01/2015,"2,344.08",,Financial Services
5188674,WORLDPAY,Asset and Investment Partnership Management,Director of Place,PDQ Fees,,22/01/2015,414.34,,Financial Services
5188674,WORLDPAY,Environmental Services,Director of Place,PDQ Fees,,22/01/2015,193.37,,Financial Services
5188674,WORLDPAY,Environmental Services,Director of Place,PDQ Fees,,22/01/2015,303.85,,Financial Services
460291,ADS,Public Health,Director of Public Health,Residential Home Long Stay Fees,,23/01/2015,"1,261.00",,Social Community Care Supplies & Services
460291,AMARA CARE LTD,Adult Social Care,Director of People,Residential Home Long Stay Fees,,23/01/2015,"6,487.86",,Social Community Care Supplies & Services
460291,AUDEN HOUSE RESIDENTIAL HOME,Adult Social Care,Director of People,Residential Home Long Stay Fees,,23/01/2015,"2,272.91",,Social Community Care Supplies & Services
460291,BALMORAL HOMES,Adult Social Care,Director of People,Residential Home Long Stay Fees,,23/01/2015,"13,290.72",,Social Community Care Supplies & Services
460291,BAMFORD GRANGE N/H,Adult Social Care,Director of People,Residential Home Long Stay Fees,,23/01/2015,"2,562.84",,Social Community Care Supplies & Services
460291,BELMONT PARKHILL LTD,Adult Social Care,Director of People,Residential Home Long Stay Fees,,23/01/2015,"35,602.68",,Social Community Care Supplies & Services
460291,BIRCHWOOD,Adult Social Care,Director of People,Residential Home Long Stay Fees,,23/01/2015,848.96,,Social Community Care Supplies & Services
460291,BLACKCLIFFE LTD,Adult Social Care,Director of People,Residential Home Long Stay Fees,,23/01/2015,"57,294.08",,Social Community Care Supplies & Services
460291,BOURNE HOUSE RESIDENTIAL HOME,Adult Social Care,Director of People,Residential Home Long Stay Fees,,23/01/2015,"24,872.18",,Social Community Care Supplies & Services
460291,BOWERFIELD COURT,Adult Social Care,Director of People,Residential Home Long Stay Fees,,23/01/2015,"3,281.57",,Social Community Care
460291,BOWLACRE HOME,Adult Social Care,Director of People,Residential Home Long Stay Fees,,23/01/2015,"19,070.32",,Social Community Care Supplies & Services
460291,BROOKVALE,Adult Social Care,Director of People,Residential Home Long Stay Fees,,23/01/2015,"6,158.96",,Social Community Care Supplies & Services
460291,BROUGHTON HOUSE HOME FOR  EX-SERVICE PERSONNEL,Adult Social Care,Director of People,Residential Home Long Stay Fees,,23/01/2015,821.4,,Social Community Care Supplies & Services
460291,CAMBIAN LEARNING DISABILITIES MIDLANDS LTD,Adult Social Care,Director of People,Residential Home Long Stay Fees,,23/01/2015,"17,686.04",,Social Community Care Supplies & Services
460291,CANTERBURY CARE HOMES LTD,Adult Social Care,Director of People,Residential Home Long Stay Fees,,23/01/2015,889.88,,Social Community Care Supplies & Services
460291,CARE UK LEARNING DISABILITIES SERVS LTD,Adult Social Care,Director of People,Residential Home Long Stay Fees,,23/01/2015,"9,763.20",,Public Bodies
460291,CHADDERTON TOTAL CAREUNIT LTD,Adult Social Care,Director of People,Residential Home Long Stay Fees,,23/01/2015,"9,177.52",,Social Community Care Supplies & Services
460291,CHARNLEY HOUSE LIMITED,Adult Social Care,Director of People,Residential Home Long Stay Fees,,23/01/2015,"20,113.50",,Social Community Care Supplies & Services
460291,CLARKSON HOUSE,Adult Social Care,Director of People,Residential Home Long Stay Fees,,23/01/2015,"2,501.36",,Social Community Care Supplies & Services
460291,CLIFFEMOUNT COMMUNITY CARE,Adult Social Care,Director of People,Residential Home Long Stay Fees,,23/01/2015,"18,615.74",,Public Bodies
460291,COMPASS CARE LIMITED,Adult Social Care,Director of People,Residential Home Long Stay Fees,,23/01/2015,"4,030.36",,Social Community Care Supplies & Services
460291,DANSHELL HEALTHCARE LTD,Adult Social Care,Director of People,Residential Home Long Stay Fees,,23/01/2015,"8,680.00",,Social Community Care
460291,ELDER HOMES GROUP,Adult Social Care,Director of People,Homecare Fees,,23/01/2015,491.08,,Social Community Care Supplies & Services
460291,ELDER HOMES GROUP,Adult Social Care,Director of People,Residential Home Long Stay Fees,,23/01/2015,"54,261.47",,Social Community Care Supplies & Services
460291,ERNELESTHORP NURSING HOME,Adult Social Care,Director of People,Residential Home Long Stay Fees,,23/01/2015,"1,783.43",,Social Community Care Supplies & Services
460291,FAIRFIELD VIEW CARE LTD,Adult Social Care,Director of People,Residential Home Long Stay Fees,,23/01/2015,"40,090.33",,Social Community Care Supplies & Services
460291,FERN BANK,Adult Social Care,Director of People,Residential Home Long Stay Fees,,23/01/2015,"18,811.40",,Social Community Care Supplies & Services
460291,FLORENCE LODGE,Adult Social Care,Director of People,Residential Home Long Stay Fees,,23/01/2015,"1,032.08",,Social Community Care Supplies & Services
460291,FOUR SEASONS (DFK) LTD T/AS ASHURST PARK CARE HOME,Adult Social Care,Director of People,Residential Home Long Stay Fees,,23/01/2015,"1,010.04",,Social Community Care
460291,FOUR SEASONS HEALTH CARE,Adult Social Care,Director of People,Residential Home Long Stay Fees,,23/01/2015,"27,588.21",,Social Community Care Supplies & Services
460291,GLENROYD CARE HOME,Adult Social Care,Director of People,Residential Home Long Stay Fees,,23/01/2015,"1,786.84",,Social Community Care Supplies & Services
460291,GRANGEFIELD,Adult Social Care,Director of People,Residential Home Long Stay Fees,,23/01/2015,"1,895.00",,Social Community Care
460291,HANDSALE LTD T/A TREELANDS,Adult Social Care,Director of People,Residential Home Long Stay Fees,,23/01/2015,"18,319.93",,Social Community Care Supplies & Services
460291,HATTON GRANGE,Adult Social Care,Director of People,Residential Home Long Stay Fees,,23/01/2015,"54,461.20",,Social Community Care
460291,HC ONE OF A KIND - GUIDE LANE,Adult Social Care,Director of People,Residential Home Long Stay Fees,,23/01/2015,"31,483.25",,Social Community Care
460291,HC ONE OF A KIND - KINGS PARK,Adult Social Care,Director of People,Residential Home Long Stay Fees,,23/01/2015,"84,052.33",,Social Community Care
460291,HEATHCOTES CARE,Adult Social Care,Director of People,Residential Home Long Stay Fees,,23/01/2015,"76,634.57",,Social Community Care
460291,LANGFIELD CARE HOME,Adult Social Care,Director of People,Residential Home Long Stay Fees,,23/01/2015,"3,124.80",,Unclassifiable
460291,LAUREL BANK RESIDENTIAL CARE HOME LTD,Adult Social Care,Director of People,Residential Home Long Stay Fees,,23/01/2015,"5,485.38",,Social Community Care Supplies & Services
460291,LEONARD CHESHIRE DISABILITY,Adult Social Care,Director of People,Residential Home Long Stay Fees,,23/01/2015,"13,739.92",,Social Community Care Supplies & Services
460291,LOUTH CARE LTD,Adult Social Care,Director of People,Residential Home Long Stay Fees,,23/01/2015,"1,789.14",,Social Community Care
460291,MARPLE DALE HALL LTD,Adult Social Care,Director of People,Residential Home Long Stay Fees,,23/01/2015,"2,645.90",,Social Community Care Supplies & Services
460291,MERIDIAN HEALTHCARE LTD,Adult Social Care,Director of People,Residential Home Long Stay Fees,,23/01/2015,"-3,055.68",,Social Community Care Supplies & Services
460291,MERIDIAN HEALTHCARE LTD,Adult Social Care,Director of People,Residential Home Long Stay Fees,,23/01/2015,"864,233.41",,Social Community Care Supplies & Services
460291,MOSS COTTAGE NURSING HOME,Adult Social Care,Director of People,Residential Home Long Stay Fees,,23/01/2015,982.16,,Social Community Care Supplies & Services
460291,MOSS COTTAGE NURSING HOME,Adult Social Care,Director of People,Residential Home Long Stay Fees,,23/01/2015,"30,288.31",,Social Community Care Supplies & Services
460291,MRS P RUGGEE,Adult Social Care,Director of People,Residential Home Long Stay Fees,Business Payment,23/01/2015,"5,508.93",,Social Community Care Supplies & Services
460291,OAKWOOD CARE CENTRE,Adult Social Care,Director of People,Residential Home Long Stay Fees,,23/01/2015,"8,166.43",,Social Community Care Supplies & Services
460291,PARK VILLA (OWNED BY CARE UK),Adult Social Care,Director of People,Residential Home Long Stay Fees,,23/01/2015,"40,200.00",,Social Community Care
460291,PENDLEBURY CARE HOMES LTD,Adult Social Care,Director of People,Residential Home Long Stay Fees,,23/01/2015,"1,847.29",,Social Community Care Supplies & Services
460291,PENNINE CARE CENTRE,Adult Social Care,Director of People,Residential Home Long Stay Fees,,23/01/2015,"3,660.17",,Social Community Care Supplies & Services
460291,POLEBANK HALL RESIDENTIAL CARE HOME LTD,Adult Social Care,Director of People,Residential Home Long Stay Fees,,23/01/2015,"6,624.32",,Social Community Care
460291,PROGRESS ADULT SERVICES LIMITED,Adult Social Care,Director of People,Residential Home Long Stay Fees,,23/01/2015,"12,462.00",,Social Community Care
460291,RIVERSIDE CARE CENTRE,Adult Social Care,Director of People,Residential Home Long Stay Fees,,23/01/2015,491.08,,Social Community Care Supplies & Services
460291,RIVERSIDE CARE CENTRE,Adult Social Care,Director of People,Residential Home Long Stay Fees,,23/01/2015,"62,349.57",,Social Community Care Supplies & Services
460291,SEYMOUR REST HOME,Adult Social Care,Director of People,Residential Home Long Stay Fees,,23/01/2015,"1,839.41",,Social Community Care Supplies & Services
460291,SIGN,Adult Social Care,Director of People,Residential Home Long Stay Fees,,23/01/2015,"4,553.28",,Social Community Care Supplies & Services
460291,SPINAL UNIT ACTION GROUP,Adult Social Care,Director of People,Residential Home Long Stay Fees,,23/01/2015,"1,855.36",,Social Community Care Supplies & Services
460291,ST GEORGE'S NURSING HOME (OLDHAM) LTD,Adult Social Care,Director of People,Residential Home Long Stay Fees,,23/01/2015,"25,493.40",,Social Community Care Supplies & Services
460291,ST LAWRENCES LODGE,Adult Social Care,Director of People,Residential Home Long Stay Fees,,23/01/2015,"4,546.45",,Social Community Care Supplies & Services
460291,ST MARY'S CONTINUING CARE LTD,Adult Social Care,Director of People,Residential Home Long Stay Fees,,23/01/2015,"10,512.53",,Social Community Care Supplies & Services
460291,SUNNY BANK PRS LTD,Adult Social Care,Director of People,Residential Home Long Stay Fees,,23/01/2015,"2,381.00",,Social Community Care Supplies & Services
460291,THE DAVID LEWIS CENTRE,Adult Social Care,Director of People,Residential Home Long Stay Fees,,23/01/2015,"4,395.52",,Social Community Care
460291,THE DELL RESIDENTIAL HOME,Adult Social Care,Director of People,Residential Home Long Stay Fees,,23/01/2015,"9,803.48",,Social Community Care Supplies & Services
460291,THE FREMANTLE TRUST,Adult Social Care,Director of People,Residential Home Long Stay Fees,,23/01/2015,"12,147.13",,Social Community Care Supplies & Services
460291,THE HESLEY GROUP LTD,Adult Social Care,Director of People,Residential Home Long Stay Fees,,23/01/2015,"14,868.00",,Social Community Care Supplies & Services
460291,THE ROYAL ELMS REST HOMES,Adult Social Care,Director of People,Residential Home Long Stay Fees,,23/01/2015,"1,841.58",,Social Community Care
460291,THE VICARAGE RESIDENTIAL CARE HOME,Adult Social Care,Director of People,Residential Home Long Stay Fees,,23/01/2015,"13,894.08",,Social Community Care Supplies & Services
460291,THORNCLIFFE GRANGE NURSING HOME,Adult Social Care,Director of People,Residential Home Long Stay Fees,,23/01/2015,"16,864.25",,Social Community Care Supplies & Services
460291,TREETON GRANGE NURSING HOME,Adult Social Care,Director of People,Residential Home Long Stay Fees,,23/01/2015,"11,285.44",,Social Community Care Supplies & Services
460291,UNITED RESPONSE,Adult Social Care,Director of People,Residential Home Long Stay Fees,,23/01/2015,"5,575.20",,Social Community Care Supplies & Services
460291,VICTORIA NURSING HOME,Adult Social Care,Director of People,Residential Home Long Stay Fees,,23/01/2015,"26,022.86",,Social Community Care Supplies & Services
460291,WINDMILL CARE HOME,Adult Social Care,Director of People,Residential Home Long Stay Fees,,23/01/2015,"2,010.13",,Social Community Care Supplies & Services
460291,WOODLANDS RESIDENTIAL CARE HOME,Adult Social Care,Director of People,Residential Home Long Stay Fees,,23/01/2015,"9,423.42",,Social Community Care Supplies & Services
460292,ELDER HOMES GROUP,Adult Social Care,Director of People,Residential Home Long Stay Fees,,26/01/2015,"23,012.00",,Social Community Care Supplies & Services
5188693,HMRC,Multiple Heads of Service,Multiple Strategic Directorates,Tax Paid Sub Contractors,,28/01/2015,"14,294.33",,Unclassifiable
5188562,POST OFFICE,Environmental Services,Director of Place,Motor Licence Costs,,28/01/2015,"1,800.00",,Mail Services
5188525,A & E FURNITURE LTD T.A THE PAVILION,Adult Social Care,Director of People,Fixtures & Fittings Purchase,,29/01/2015,799,,Furniture
5183336,ACORN CARE & EDUCATION LTD (SALES),Education,Director of People,Voluntary Organisations Fees,,29/01/2015,"10,658.00",,Social Community Care
5188687,ACORN CARE & EDUCATION LTD (SALES),Education,Director of People,Voluntary Organisations Fees,,29/01/2015,"10,658.00",,Social Community Care
5187212,ACTION FOR CHILDREN,Strategy & Early Intervention,Director of People,Professional Services, ,29/01/2015,"25,336.00",,Social Community Care
5185955,ADDICTION DEPENDENCY SOLUTIONS (ADS),Public Health,Director of Public Health,Professional Services,,29/01/2015,"5,019.19",,Consultancy
5185956,ADDICTION DEPENDENCY SOLUTIONS (ADS),Public Health,Director of Public Health,Professional Services,,29/01/2015,"10,000.00",,Consultancy
5185972,ADDICTION DEPENDENCY SOLUTIONS (ADS),Public Health,Director of Public Health,Professional Services,,29/01/2015,"26,772.25",,Consultancy
470601,AGGREGATE INDUSTRIES UK LIMITED,Environmental Services,Director of Place,General Materials,,29/01/2015,"2,230.70",,Highway Equipment & Materials�
3250492,AIR PRODUCTS PLC,Environmental Services,Director of Place,General Equipment Repair & Maintenance,,29/01/2015,575.63,,Utilities
470601,AJC ROAD SWEEPERS,Environmental Services,Director of Place,Sub-contractor Services,,29/01/2015,"1,625.00",,Vehicles
29000021,ALBION MEDICAL PRACTICE,Public Health,Director of Public Health,Local Enhanced Services,,29/01/2015,"3,814.50",,Consultancy
29000021,ALBION MEDICAL PRACTICE,Public Health,Director of Public Health,National Enhanced Services,,29/01/2015,"3,616.00",,Consultancy
5188846,ALLIED HEALTHCARE GROUP LTD (MEDICO),Adult Social Care,Director of People,Homecare Fees,,29/01/2015,"13,095.00",,Social Community Care Supplies & Services
470601,ARCO LIMITED,Environmental Services,Director of Place,Debits Goods Received,,29/01/2015,714.43,,Clothing
29000021,ASDA PHARMACY,Public Health,Director of Public Health,Local Enhanced Services,,29/01/2015,"2,297.64",,Consultancy
29000021,ASHTON GP SERVICE,Public Health,Director of Public Health,Local Enhanced Services,,29/01/2015,871.5,,Consultancy
29000021,AWBURN HOUSE MEDICAL PRACTICE,Public Health,Director of Public Health,Local Enhanced Services,,29/01/2015,"1,348.00",,Consultancy
29000021,BEDFORD HOUSE MEDICAL CENTRE,Public Health,Director of Public Health,Local Enhanced Services,,29/01/2015,667,,Medical
29000021,BOOTS UK LTD,Public Health,Director of Public Health,Local Enhanced Services,,29/01/2015,"3,268.05",,Consultancy
470601,BRAMHALL SURFACING LTD,Environmental Services,Director of Place,Sub-contractor Services,,29/01/2015,"3,114.48",,"Works - Construction, Repair & Maintenance"
5187064,CARE IN MIND LTD,Adult Social Care,Director of People,Residential Home Short Stay Fees,,29/01/2015,"3,029.01",,Social & Community
5187818,CAUSEWAY TECHNOLOGIES LTD,Environmental Services,Director of Place,Licences,,29/01/2015,974.87,,Information Communication Technology
29000021,CHADWICK & HADFIELD LTD,Public Health,Director of Public Health,Local Enhanced Services,,29/01/2015,536,,Consultancy
5188725, ,Adult Social Care,Director of People,Residential Home Short Stay Fees,Redacted Supplier,29/01/2015,"1,850.65",,Redacted
29000021,CHURCHGATE SURGERY,Public Health,Director of Public Health,Local Enhanced Services,,29/01/2015,177.4,,Consultancy
29000021,CHURCHGATE SURGERY,Public Health,Director of Public Health,National Enhanced Services,,29/01/2015,"2,656.00",,Consultancy
29000021,CLARENDON MEDICAL PRACTICE,Public Health,Director of Public Health,Local Enhanced Services,,29/01/2015,"4,968.50",,Consultancy
5187049,CLOVERLEAF ADVOCACY 2000 LTD,Adult Social Care,Director of People,Professional Services,,29/01/2015,"12,408.30",,Social Community Care Supplies & Services
5188848,COMFORT CALL LIMITED,Adult Social Care,Director of People,Homecare Fees,,29/01/2015,"32,359.08",,Medical
5188851,COMFORT CALL LIMITED,Adult Social Care,Director of People,Homecare Fees,,29/01/2015,"32,389.68",,Medical
5187588,COMMUNITY AND VOLUNTARY ACTION TAMESIDE,Public Health,Director of Public Health,Professional Services,,29/01/2015,"29,650.00",,Financial Services
5187042,COMMUNITY INTEGRATED CARE,Adult Social Care,Director of People,Homecare Fees,,29/01/2015,"18,360.00",,Social Community Care Supplies & Services
470601,COMPASS MINERALS UK LTD,Environmental Services,Director of Place,Debits Goods Received,,29/01/2015,"18,461.72",,Highway Equipment & Materials�
5188829,CREATIVE SUPPORT LTD,Adult Social Care,Director of People,Homecare Fees,,29/01/2015,"13,634.25",,Social Community Care Supplies & Services
5188830,CREATIVE SUPPORT LTD,Adult Social Care,Director of People,Homecare Fees,,29/01/2015,"14,794.15",,Social Community Care Supplies & Services
5188831,CREATIVE SUPPORT LTD,Adult Social Care,Director of People,Homecare Fees,,29/01/2015,"13,634.25",,Social Community Care Supplies & Services
5188832,CREATIVE SUPPORT LTD,Adult Social Care,Director of People,Homecare Fees,,29/01/2015,"14,625.15",,Social Community Care Supplies & Services
5188833,CREATIVE SUPPORT LTD,Adult Social Care,Director of People,Homecare Fees,,29/01/2015,"14,794.15",,Social Community Care Supplies & Services
5188834,CREATIVE SUPPORT LTD,Adult Social Care,Director of People,Homecare Fees,,29/01/2015,"14,794.15",,Social Community Care Supplies & Services
5188835,CREATIVE SUPPORT LTD,Adult Social Care,Director of People,Homecare Fees,,29/01/2015,"13,634.25",,Social Community Care Supplies & Services
5188836,CREATIVE SUPPORT LTD,Adult Social Care,Director of People,Homecare Fees,,29/01/2015,"13,634.25",,Social Community Care Supplies & Services
5188837,CREATIVE SUPPORT LTD,Adult Social Care,Director of People,Homecare Fees,,29/01/2015,"14,794.15",,Social Community Care Supplies & Services
5188838,CREATIVE SUPPORT LTD,Adult Social Care,Director of People,Homecare Fees,,29/01/2015,"14,794.15",,Social Community Care Supplies & Services
5188839,CREATIVE SUPPORT LTD,Adult Social Care,Director of People,Homecare Fees,,29/01/2015,"14,794.15",,Social Community Care Supplies & Services
5187534,DAISY COMMUNICATIONS LTD,Multiple Heads of Service,Multiple Strategic Directorates,Telephone Landline Costs,,29/01/2015,"5,055.01",,Public Bodies
29000021,DAVAAR MEDICAL CENTRE,Public Health,Director of Public Health,Local Enhanced Services,,29/01/2015,"2,182.90",,Consultancy
3250492,DENNIS EAGLE LTD,Environmental Services,Director of Place,General Materials,,29/01/2015,"1,244.47",,Vehicles
3250492,DENNIS EAGLE LTD,Environmental Services,Director of Place,Debits Goods Received,,29/01/2015,323.65,,Vehicles
29000021,DENTON MEDICAL PRACTICE,Public Health,Director of Public Health,Local Enhanced Services,,29/01/2015,"1,969.50",,Medical
29000021,DONNEYBROOK MEDICAL CENTRE,Public Health,Director of Public Health,Local Enhanced Services,,29/01/2015,"1,213.60",,Medical
29000021,DONNEYBROOK MEDICAL CENTRE,Public Health,Director of Public Health,National Enhanced Services,,29/01/2015,"3,616.00",,Medical
470601,EAGLE CIVIL ENGINEERING LTD,Environmental Services,Director of Place,Sub-contractor Services,,29/01/2015,"4,026.03",,Highway Equipment & Materials�
5187442,EDGE ANALYTICS,Education,Director of People,Professional Consultancy Services,,29/01/2015,"2,325.39",,Unclassifiable
5188808,EDUCATION LANGUAGE LTD,Education,Director of People,Training Course Costs,,29/01/2015,600,,CONSULTANCY
5174321,ELECTRICITY NORTH WEST LTD,Environmental Services,Director of Place,Street Lighting Works,,29/01/2015,609.99,,Utilities
470601,ELLIOTT GROUP LTD,Environmental Services,Director of Place,Additional Hire,,29/01/2015,"1,641.98",,"Works - Construction, Repair & Maintenance"
5188365,EVADE MARTIAL ARTS AND PERFORMANCE CENTRE,Strategy & Early Intervention,Director of People,Personal Needs Entertainments & Holidays,,29/01/2015,"1,500.00",,Leisure Services
3250492,F & G COMMERCIALS (OLDHAM) LIMITED,Environmental Services,Director of Place,General Materials,,29/01/2015,767.2,,Vehicles
5187870,FEDERATION OF BURIAL AND CREMATION AUTHORITIES,Environmental Services,Director of Place,General Equipment Purchase,,29/01/2015,876,,Cemetery & Crematorium
3250492,FLEET PARTS LTD,Environmental Services,Director of Place,General Equipment Repair & Maintenance,,29/01/2015,"1,330.00",,Unclassifiable
5187211,FOUNDATION (CENTRAL SERVICES),Stronger Communities,Director of People,Supporting People Gross Contract,,29/01/2015,"35,000.00",,Social & Community
5187357,FRONTIER MEDICAL PRODUCTS,Public Health,Director of Public Health,Local Enhanced Services,,29/01/2015,"6,746.95",,Consultancy
3250492,G B OILS TA CARLTON FUELS,Environmental Services,Director of Place,Debits Goods Received,,29/01/2015,"19,332.60",,Utilities
470601,GENERAL UTILITIES NORTHWEST LTD,Environmental Services,Director of Place,Sub-contractor Services,,29/01/2015,"1,220.00",,Environmental Services
470601,GENERAL UTILITIES NORTHWEST LTD,Multiple Heads of Service,Multiple Strategic Directorates,Tax Retained Sub Contractors,,29/01/2015,-244,,Environmental Services
29000021,GORDON STREET MEDICAL CENTRE,Public Health,Director of Public Health,Local Enhanced Services,,29/01/2015,"1,506.40",,Consultancy
470601,GUNN JCB LTD,Environmental Services,Director of Place,General Materials,,29/01/2015,"5,565.72",,Vehicles
29000021,HATTERSLEY GROUP PRACTICE,Public Health,Director of Public Health,Local Enhanced Services,,29/01/2015,518.5,,Consultancy
29000021,HATTERSLEY GROUP PRACTICE,Public Health,Director of Public Health,National Enhanced Services,,29/01/2015,"3,616.00",,Consultancy
29000021,HAUGHTON-THORNLEY MEDICAL CENTRE,Public Health,Director of Public Health,Local Enhanced Services,,29/01/2015,"3,220.90",,Medical
5188190,HEALTH MANAGEMENT (UK) LTD,Governance,Director of Governance,Professional Medical Services,,29/01/2015,"7,371.17",,Medical
29000021,HIGHLANDS & TRAFALGAR SQUARE SURGERY,Public Health,Director of Public Health,Local Enhanced Services,,29/01/2015,566,,Consultancy
470601,HIGHWAYS & GROUNDWORK NVQ ASSESSMENT CENTRE LTD,Environmental Services,Director of Place,Training Course Costs,,29/01/2015,"2,000.00",,Unclassifiable
3250492,HI-Q TYRESERVICES,Environmental Services,Director of Place,General Materials,,29/01/2015,67,,Vehicles
3250492,HI-Q TYRESERVICES,Environmental Services,Director of Place,Tyre Costs,,29/01/2015,"2,392.52",,Vehicles
5188854,HOMESTART TAMESIDE & OLDHAM,Corporate Costs,Corporate Costs,Contributions,,29/01/2015,"2,000.00",,Social Community Care Supplies & Services
5188866,HOWARD COOK,Education,Director of People,Professional Services,Business Payment,29/01/2015,680,,Unclassifiable
3250492,I H S HOSEMASTER,Environmental Services,Director of Place,General Materials,,29/01/2015,"2,572.70",,Unclassifiable
5188247,IMPACK SERVICES,Stronger Communities,Director of People,Grants to Organisations,,29/01/2015,780,,Unclassifiable
5188736,IMPACK SERVICES,Stronger Communities,Director of People,Refreshments,,29/01/2015,650,,Unclassifiable
470601,INSTARMAC GROUP PLC,Environmental Services,Director of Place,Debits Goods Received,,29/01/2015,"1,222.00",,Highway Equipment & Materials�
5188435,JC APPLICATIONS DEVELOPMENT,Finance,Director of Finance,Computer Software Maintenance Costs,,29/01/2015,"2,649.00",,Information Communication Technology
5188437,JC APPLICATIONS DEVELOPMENT,Finance,Director of Finance,Computer Software Maintenance Costs,,29/01/2015,"4,049.00",,Information Communication Technology
5188439,JC APPLICATIONS DEVELOPMENT,Finance,Director of Finance,Computer Software Maintenance Costs,,29/01/2015,928,,Information Communication Technology
3250492,JOHNSTON SWEEPERS LTD,Environmental Services,Director of Place,General Materials,,29/01/2015,"2,835.74",,Environmental Services
3250492,JOHNSTON SWEEPERS LTD,Environmental Services,Director of Place,Debits Goods Received,,29/01/2015,304.7,,Environmental Services
5188401,JULIE CARTER,Adult Social Care,Director of People,Professional Interpreter Services,Business Payment,29/01/2015,"1,370.00",,Unclassifiable
5188041, ,Childrens Services,Director of People,Living Without Formal Support,Redacted Supplier,29/01/2015,"1,700.00",,Redacted
5186594,KCA KATE CAIRNS ASSOCIATES,Governance,Director of Governance,Fees,,29/01/2015,"1,200.00",,Human Resources
470601,KONSTRUCTA HIRE LIMITED,Environmental Services,Director of Place,Additional Hire,,29/01/2015,784,,"Works - Construction, Repair & Maintenance"
29000021,LAMBGATES HEALTH CENTRE,Public Health,Director of Public Health,Local Enhanced Services,,29/01/2015,"9,359.50",,Consultancy
5187452,LEGGETT PSYCHOLOGY LTD,Education,Director of People,Professional Services,,29/01/2015,800,,Education
470601,LIMB TO LIMB TREE SERVICES LIMITED,Environmental Services,Director of Place,Sub-contractor Services,,29/01/2015,"1,250.00",,Horticultural
29000021,LLOYDS PHARMACY LTD,Public Health,Director of Public Health,Local Enhanced Services,,29/01/2015,"2,375.00",,Consultancy
29000021,LOCKSIDE MEDICAL CENTRE,Public Health,Director of Public Health,Local Enhanced Services,,29/01/2015,"1,064.80",,Medical
29000021,LOCKSIDE MEDICAL CENTRE,Public Health,Director of Public Health,National Enhanced Services,,29/01/2015,960,,Medical
29000021,MANOR HOUSE SURGERY,Public Health,Director of Public Health,Local Enhanced Services,,29/01/2015,"1,105.00",,Consultancy
29000021,MARKET STREET MEDICAL PRACTICE,Public Health,Director of Public Health,Local Enhanced Services,,29/01/2015,"2,064.50",,Medical
470601,MARWOOD ELECTRICAL CO,Environmental Services,Director of Place,General Materials,,29/01/2015,"17,396.94",,Highway Equipment & Materials�
470601,MARWOOD ELECTRICAL CO,Environmental Services,Director of Place,Debits Goods Received,,29/01/2015,"1,339.80",,Highway Equipment & Materials�
470601,MATHER AND STUART GENERATORS LTD,Environmental Services,Director of Place,Additional Hire,,29/01/2015,644,,Horticultural
29000021,MEDICX PHARMACY,Public Health,Director of Public Health,Local Enhanced Services,,29/01/2015,"2,757.06",,Consultancy
470601,MEON MARKETING,Environmental Services,Director of Place,General Materials,,29/01/2015,804.4,,"Works - Construction, Repair & Maintenance"
29000021,MOSSLEY MEDICAL PRACTICE,Public Health,Director of Public Health,Local Enhanced Services,,29/01/2015,854.4,,Consultancy
29000021,MOSSLEY MEDICAL PRACTICE,Public Health,Director of Public Health,National Enhanced Services,,29/01/2015,"6,311.00",,Consultancy
5187390,NATIONAL YOUTH ADVOCACY SERVICE,Childrens Services,Director of People,Professional Services,,29/01/2015,"17,999.03",,Charities and Voluntary Organisations
5187489,NEW CHARTER HOUSING TRUST GROUP,Childrens Services,Director of People,Non-Authority Accommodation Rental,,29/01/2015,"18,557.35",,Social Community Care Supplies & Services
5188863,NORCOMM (UK) LTD,Asset and Investment Partnership Management,Director of Place,Computer Software,,29/01/2015,"1,425.28",,Information Communication Technology
5185873,OSMIS EDUCATION LIMITED,Digital Tameside,Director of Place,Professional Services,,29/01/2015,"6,445.00",,Information Communication Technology
5188462,OSTINATO MUSIC LTD,Education,Director of People,Professional Services,,29/01/2015,"2,778.18",,Education
470601,P P O'CONNOR,Environmental Services,Director of Place,Sub-contractor Services,Business Payment,29/01/2015,"11,829.92",,Public Bodies
470601,P P O'CONNOR,Multiple Heads of Service,Multiple Strategic Directorates,Tax Retained Sub Contractors,Business Payment,29/01/2015,"-2,365.98",,Public Bodies
3250492,PEAK PARTS,Environmental Services,Director of Place,Consumable Materials,,29/01/2015,607.55,,Vehicles
3250492,PEAK PARTS,Environmental Services,Director of Place,General Equipment Purchase,,29/01/2015,26.95,,Vehicles
3250492,PEAK PARTS,Environmental Services,Director of Place,General Materials,,29/01/2015,13.64,,Vehicles
5187018,PHS GROUP PLC,Asset and Investment Partnership Management,Director of Place,Personal Hygiene Costs,,29/01/2015,"1,314.90",,Cleaning & Janitorial
5187104,PHS GROUP PLC,Asset and Investment Partnership Management,Director of Place,Personal Hygiene Costs,,29/01/2015,570.96,,Cleaning & Janitorial
5187337,PROFILE SECURITY SERVICES LIMITED,Asset and Investment Partnership Management,Director of Place,Security Services,,29/01/2015,"2,301.05",,Facilities & Management Services
5188198,PROFILE SECURITY SERVICES LIMITED,Asset and Investment Partnership Management,Director of Place,Security Equipment,,29/01/2015,"10,602.62",,Facilities & Management Services
5187434,PROFILE SECURITY SERVICES LIMITED,Environmental Services,Director of Place,Security Services,,29/01/2015,"2,536.72",,Facilities & Management Services
5188754,RADIO CABS (ASHTON)LTD,Childrens Services,Director of People,Staff Travel Costs,,29/01/2015,634.9,,Transport
5188753,RANDSTAD EDUCATION LIMITED,Education,Director of People,Agency Staff,,29/01/2015,995,,Education
5188758,RANDSTAD EDUCATION LIMITED,Education,Director of People,Agency Staff,,29/01/2015,575,,Education
5188761,RANDSTAD EDUCATION LIMITED,Education,Director of People,Agency Staff,,29/01/2015,"1,050.00",,Education
5188762,RANDSTAD EDUCATION LIMITED,Education,Director of People,Agency Staff,,29/01/2015,"1,050.00",,Education
5188763,RANDSTAD EDUCATION LIMITED,Education,Director of People,Agency Staff,,29/01/2015,"1,050.00",,Education
5187219,SALFORD CITY COUNCIL,Adult Social Care,Director of People,Professional Services ,,29/01/2015,"28,069.50",,Consultancy
470601,SECURETASK SECURITY LTD,Environmental Services,Director of Place,Sub-contractor Services,,29/01/2015,"3,653.97",,Facilities & Management Services
470601,SELC IRELAND LTD,Environmental Services,Director of Place,General Materials,,29/01/2015,"2,377.50",,Highway Equipment & Materials�
29000021,ST ANDREWS HOUSE MEDICAL CENTRE,Public Health,Director of Public Health,Local Enhanced Services,,29/01/2015,"1,308.90",,Consultancy
5187075,STAFF CARE SERVICES,Adult Social Care,Director of People,Professional Consultancy Services,,29/01/2015,"1,125.00",,Human Resources
5187075,STAFF CARE SERVICES,Adult Social Care,Director of People,Staff Travel Costs,,29/01/2015,38.08,,Human Resources
470601,STALYBRIDGE READYMIX LTD,Environmental Services,Director of Place,General Materials,,29/01/2015,"24,644.00",,Highway Equipment & Materials�
5188348,STAMFORD CARS UK LTD,Education,Director of People,Transport Of Pupils,,29/01/2015,"1,018.63",,Transport
29000021,STAMFORD HOUSE MEDICAL CENTRE,Public Health,Director of Public Health,Local Enhanced Services,,29/01/2015,541.3,,Medical
5188334,STOCKPORT MBC,Exchequer,Director of Finance,Postages,,29/01/2015,"1,956.00",,Highway Equipment & Materials�
5187134,STOCKPORT NHS FOUNDATION TRUST,Public Health,Director of Public Health,Professional Services,,29/01/2015,"281,774.00",,Medical
5188844,TAMESIDE ARTS LTD,Adult Social Care,Director of People,Professional Services,,29/01/2015,"1,224.00",,Leisure Services
5188840,"TAMESIDE, OLDHAM AND GLOSSOP MIND",Adult Social Care,Director of People,Professional Services,,29/01/2015,"1,254.60",,Social Community Care Supplies & Services
5188841,"TAMESIDE, OLDHAM AND GLOSSOP MIND",Adult Social Care,Director of People,Professional Services,,29/01/2015,"5,018.40",,Social Community Care Supplies & Services
3250492,TERBERG MATEC UK LTD,Environmental Services,Director of Place,General Materials,,29/01/2015,566.05,,Environmental Services
5188002,THE BLACKBURN PRODUCTS CO LTD,Environmental Services,Director of Place,Waste Disposal Fees,,29/01/2015,700,,Environmental Services
29000021,THE BROOKE SURGERY,Public Health,Director of Public Health,Local Enhanced Services,,29/01/2015,"5,025.50",,Consultancy
29000021,THE CO-OP PHARMACY,Public Health,Director of Public Health,Local Enhanced Services,,29/01/2015,"2,703.29",,Medical
5187268,THE FURNISHING SERVICE LTD,Stronger Communities,Director of People,Fixtures & Fittings Purchase,,29/01/2015,613.66,,Furniture
5187339,THE FURNISHING SERVICE LTD,Stronger Communities,Director of People,Fixtures & Fittings Purchase,,29/01/2015,532.25,,Furniture
5187349,THE FURNISHING SERVICE LTD,Stronger Communities,Director of People,Fixtures & Fittings Purchase,,29/01/2015,508.42,,Furniture
5187362,THE FURNISHING SERVICE LTD,Stronger Communities,Director of People,Fixtures & Fittings Purchase,,29/01/2015,529.96,,Furniture
5187380,THE FURNISHING SERVICE LTD,Stronger Communities,Director of People,Fixtures & Fittings Purchase,,29/01/2015,528.09,,Furniture
5187371,THE PENNINE ACUTE HOSPITALS NHS TRUST,Public Health,Director of Public Health,Professional Services,,29/01/2015,"1,503.00",,Medical
3250492,THE SUNLIGHT SERVICE GROUP LTD,Environmental Services,Director of Place,Cleaning Materials,,29/01/2015,312.1,,Catering
3250492,THE SUNLIGHT SERVICE GROUP LTD,Environmental Services,Director of Place,Protective Clothing,,29/01/2015,313.75,,Catering
5188086,THE TOGETHER TRUST,Adult Social Care,Director of People,Homecare Fees,,29/01/2015,"2,214.00",,Social Community Care
5188548,TRAVELERS INSURANCE COMPANY LTD,Multiple Heads of Service,Multiple Strategic Directorates,Reimbursement Paid To Insurers,,29/01/2015,"20,599.50",,Financial Services
5187410,TTS GROUP LTD,Public Health,Director of Public Health,Educational Equipment,,29/01/2015,"1,659.93",,Education
5187410,TTS GROUP LTD,Public Health,Director of Public Health,Fixtures & Fittings Purchase,,29/01/2015,559.8,,Education
5187753,ULVERSCROFT LARGE PRINT  BOOKS LTD,Stronger Communities,Director of People,Purchase Books,,29/01/2015,"1,056.81",,Education
470601,VIATEC UK,Environmental Services,Director of Place,General Materials,,29/01/2015,"1,276.00",,Highway Equipment & Materials�
470601,VIRIDOR,Environmental Services,Director of Place,Tipping Facility Fees,,29/01/2015,"14,805.12",,Environmental Services
29000021,WEST END MEDICAL PRACTICE,Public Health,Director of Public Health,Local Enhanced Services,,29/01/2015,406,,Consultancy
29000021,WEST END MEDICAL PRACTICE,Public Health,Director of Public Health,National Enhanced Services,,29/01/2015,"2,656.00",,Consultancy
5187751,WHITEFERN LTD,Stronger Communities,Director of People,Fixtures & Fittings Purchase,,29/01/2015,"1,203.26",,Furniture
29000021,WINDMILL MEDICAL PRACTICE,Public Health,Director of Public Health,Local Enhanced Services,,29/01/2015,950.2,,Medical
29000021,WINDMILL MEDICAL PRACTICE,Public Health,Director of Public Health,National Enhanced Services,,29/01/2015,"2,656.00",,Medical
,CAPITA - BENEFIT PAYMENTS,Exchequer,Director of Finance,Housing Benefit Payments,,,"10,630,367.76",,Unclassifiable
,HAYS SPECIALIST RECRUITMENT GROUP,Multiple Heads of Service,Multiple Strategic Directorates,Agency Staff,,,"150,188.37",,Human Resources
,CARE RELATED PAYMENTS,Multiple Heads of Service,Multiple Strategic Directorates,Care Related Payments,,,"429,693.63",,Social Community Care 
,FOSTERING/ADOPTION/LOOKED AFTER CHILDREN RELATED PAYMENTS,Childrens Services,Director of People,Child related Payments,,,"775,097.04",,Social Community Care 
